Cogmind - Beta 16.1 @@@ ROGUE MODE // 2026.04.08 @ 22:10:49 Player: Benkyo Result: Destroyed 0b10! Performance ------------- Evolutions (9) 4500 Regions Visited (27) 5400 Robots Destroyed (173) 865 Value Destroyed (6815) 6815 Prototype IDs (69) 1380 Alien Tech Used (11) 2200 Bonus (47384) 47384 TOTAL SCORE: 68544 Bonus ------- Triggered Max Security 2000 High Alert Combat Kills 1329 Follower Combat Kills 17277 Entered Garrisons 1400 Used RIF Installer 4000 Network Hubs Disabled 600 Built Enhanced Grunts 300 A7 Reached Mainframe 300 Met R17 at Cetus 500 Met R17 at Research 2000 Met Sigix 2000 Activated Exoskeleton 3000 Escaped with Exo-Sigix 10000 Win 3000 Friendly Fire -322 Cogmind --------- Core Integrity 1695/1850 Matter 215/300 Energy 1196/1200 System Corruption 0% +Membrane Temperature Cool (0) Movement Rolling (138) Ox3 Location Tau Ceti IV Orbit Parts ------- > --- POWER (3) -------- Quantum Reactor Vortex Chain Reactor > --- PROPULSION (4) --- Compact Wheel Compact Wheel Compact Wheel High-density Centrium Wheel > --- UTILITY (12) ----- Experimental Heat Sink Huge Storage Unit Long-range Sensor Array Experimental Signal Interpreter Core Analyzer Quantum Capacitor SHELL Armor Improved Remote Force Field Relay Coupler [C] (43) > --- WEAPON (7) ------- Compact HERF Cannon Cooled Nova Cannon 1B-0RG's Assimilator > --- INVENTORY (25) --- Graviton Reactor Biometal Medium Treads Compact Wheel Compact Wheel Compact Wheel Experimental Coolant Injector Experimental Energy Well (600) Experimental Matter Compressor (351) Experimental Matter Compressor (0) Improved Transmission Jammer Medium Regenerative Plating Relay Coupler [Sentry] (36) Relay Coupler [Hunter] (26) Advanced Component Analysis Suite Long-range Tractor Beam High-powered Transdimensional Reconstructor Spacefold Activator Enhanced Hardcell Cannon Graviton Cannon Advanced Remote Datajack Improved Plasma Cutter Peak State ------------ > --- POWER ------------ Quantum Reactor Vortex Chain Reactor > --- PROPULSION ------- Compact Wheel Compact Wheel Compact Wheel High-density Centrium Wheel > --- UTILITY ---------- Experimental Heat Sink Huge Storage Unit Long-range Sensor Array Experimental Signal Interpreter Core Analyzer Quantum Capacitor SHELL Armor Experimental Force Field Relay Coupler [C] > --- WEAPON ----------- Compact HERF Cannon Cooled Nova Cannon 1B-0RG's Assimilator > --- INVENTORY -------- Graviton Reactor Biometal Medium Treads Compact Wheel Compact Wheel Compact Wheel Experimental Coolant Injector Experimental Energy Well Experimental Matter Compressor Experimental Matter Compressor Improved Transmission Jammer Medium Regenerative Plating Improved Remote Force Field Relay Coupler [Sentry] Relay Coupler [Hunter] Advanced Component Analysis Suite Long-range Tractor Beam High-powered Transdimensional Reconstructor Spacefold Activator Enhanced Hardcell Cannon Graviton Cannon Advanced Remote Datajack Improved Plasma Cutter [Rating: 232] Favorites ----------- Power Quantum Reactor Engine Ion Engine Power Core Light Nuclear Core Reactor Quantum Reactor Propulsion Wheel Treads Light Treads Leg Enhanced Biometal Leg Wheel Wheel Utility Huge Storage Unit Device Improved Transmission Jammer Storage Huge Storage Unit Processor Experimental Signal Interpreter Hackware Relay Coupler [NC] Protection Improved Medium Armor Plating Artifact Spacefold Activator Weapon 1B-0RG's Assimilator Energy Gun Medium Laser Energy Cannon Improved EM Pulse Cannon Ballistic Gun Barrage Gun Ballistic Cannon Improved Light Cannon Launcher Grenade Launcher Special Weapon Improved Remote Datajack Impact Weapon Power Maul Special Melee Weapon 1B-0RG's Assimilator Build | -11 -10 -10 -8 -8 -8 -8 -8 -7 -7 -7 -7 -6 -6 -5 -5 -5 -5 -5 -5 -4 -4 -3 -3 -2 -2 -2 -1 ------- Run | Yrd Mat Sub Mat Gar Mat Gar Mat Fac Gar Fac Gar Fac Gar Fac Ext Cet Arc Hub Gar Fac Gar Res Tes Res Qua Sec Acc Slots Evolved 18 | . . . 4 . . . . 2 . . . 2 . 2 . . . . . 2 . 2 . 2 . . 2 Power 1 | . . . . . . . . . . . . . . . . . . . . . . 1 . . . . . Propulsion 2 | . . . . . . . . 1 . . . . . . . . . . . 1 . . . . . . . Utility 10 | . . . . . . . . 1 . . . 1 . 2 . . . . . 1 . 1 . 2 . . 2 Weapon 5 | . . . 4 . . . . . . . . 1 . . . . . . . . . . . . . . . Parts Attached 169 | 7 7 9 21 11 5 6 3 8 5 1 2 1 5 6 7 7 4 9 3 3 2 8 8 5 9 3 4 Power 15 | 1 . . 4 2 . . 1 . . . 1 . . . . 1 1 . 1 . . . . 1 2 . . Engine 6 | 1 . . 3 1 . . 1 . . . . . . . . . . . . . . . . . . . . Core 2 | . . . 1 1 . . . . . . . . . . . . . . . . . . . . . . . Reactor 7 | . . . . . . . . . . . 1 . . . . 1 1 . 1 . . . . 1 2 . . Propulsion 53 | 2 1 3 9 2 3 2 1 6 1 1 . . 1 . 3 . . 3 1 3 1 5 1 . 2 . 2 Treads 13 | 2 1 3 2 1 . 1 1 1 . . . . . . . . . . . . 1 . . . . . . Leg 2 | . . . . . . . . . . . . . . . . . . . 1 . . 1 . . . . . Wheel 38 | . . . 7 1 3 1 . 5 1 1 . . 1 . 3 . . 3 . 3 . 4 1 . 2 . 2 Hover . | . . . . . . . . . . . . . . . . . . . . . . . . . . . . Flight . | . . . . . . . . . . . . . . . . . . . . . . . . . . . . Utility 66 | 2 3 1 4 5 2 2 . 1 3 . . . 4 4 2 5 3 6 1 . . 2 5 4 3 2 2 Device 26 | 1 . . 1 4 . 1 . 1 . . . . 1 1 . 1 2 3 . . . 1 2 2 3 1 1 Storage 14 | 1 2 . 2 . 1 1 . . 2 . . . 1 . 1 1 . 1 . . . . 1 . . . . Processor 6 | . . . . . . . . . . . . . . 1 . . . 1 . . . 1 . 2 . . 1 Hackware 6 | . . . . . . . . . . . . . 1 2 1 . 1 . 1 . . . . . . . . Protection 13 | . 1 1 1 1 1 . . . 1 . . . 1 . . 3 . 1 . . . . 2 . . . . Artifact 1 | . . . . . . . . . . . . . . . . . . . . . . . . . . 1 . Weapon 35 | 2 3 5 4 2 . 2 1 1 1 . 1 1 . 2 2 1 . . . . 1 1 2 . 2 1 . Energy Gun 2 | 1 . . 1 . . . . . . . . . . . . . . . . . . . . . . . . Energy Cannon 9 | . . . . 1 . . 1 1 1 . 1 . . 1 . . . . . . 1 . 2 . . . . Ballistic Gun 3 | 1 . 1 . . . . . . . . . . . . . 1 . . . . . . . . . . . Ballistic Cannon 10 | . 2 3 2 . . 1 . . . . . . . . 1 . . . . . . . . . . 1 . Launcher 1 | . 1 . . . . . . . . . . . . . . . . . . . . . . . . . . Special Weapon 7 | . . 1 . 1 . . . . . . . 1 . 1 1 . . . . . . 1 . . 1 . . Impact Weapon 2 | . . . . . . 1 . . . . . . . . . . . . . . . . . . 1 . . Slashing Weapon . | . . . . . . . . . . . . . . . . . . . . . . . . . . . . Piercing Weapon . | . . . . . . . . . . . . . . . . . . . . . . . . . . . . Special Melee Weapon 1 | . . . 1 . . . . . . . . . . . . . . . . . . . . . . . . Unidentified Prototypes 25 | . . . 1 . . . . . . . . . . . . 3 . 3 1 . . . 5 . 2 10 . Corrupted Parts 1 | . . . . . . . . . . . . . . . . . 1 . . . . . . . . . . System Corruption 3 | . . . . . . . . . . . . . . . . . 3 . . . . . . . . . . Parts Lost 26 | . . . 5 4 . 2 . 1 . . 1 . . . 1 . . 4 1 1 1 3 . . 1 . 1 Power 2 | . . . 2 . . . . . . . . . . . . . . . . . . . . . . . . Propulsion 16 | . . . . 3 . 2 . . . . 1 . . . 1 . . 3 1 1 1 3 . . . . . Utility 5 | . . . 2 1 . . . . . . . . . . . . . 1 . . . . . . . . 1 Weapon 3 | . . . 1 . . . . 1 . . . . . . . . . . . . . . . . 1 . . Highest Loss Streak 2 | . . . 2 2 . 2 . 1 . . 1 . . . 1 . . 1 1 1 1 2 . . 1 . 1 To Critical Strikes . | . . . . . . . . . . . . . . . . . . . . . . . . . . . . Average Backups 22 | 4 19 21 24 24 24 23 25 24 25 25 24 22 24 24 24 23 22 22 22 22 22 22 22 21 21 20 19 Power . | . . . . . . . . . . . . . . 1 1 1 1 1 1 1 1 . . . . . . Propulsion 3 | 1 7 6 6 3 4 2 1 2 3 3 2 1 1 2 2 3 3 2 2 2 2 2 2 2 . . 3 Utility 11 | . 3 5 10 14 14 14 15 15 15 15 15 16 16 15 15 13 12 13 13 13 12 12 14 15 13 13 11 Weapon 5 | 1 8 7 7 5 5 6 6 6 5 5 4 3 4 3 3 3 3 3 3 3 4 4 2 2 2 1 1 Tool/Special . | . . . . . . . . . . . . . . . . . . . . . . . . . . . . Unused Backups 71 | . 6 3 16 3 4 1 1 2 1 1 . . 1 1 1 3 . 1 . . . 1 6 . 7 3 9 Power 4 | . 1 . . . . . . . . . . . . . . 1 . . . . . . . . . 1 1 Propulsion 16 | . 2 . 5 . 2 . . . . . . . . . . 1 . . . . . . 3 . 1 . 2 Utility 25 | . 1 1 1 2 2 1 1 . 1 . . . 1 . 1 . . 1 . . . . 2 . 6 . 4 Weapon 20 | . 2 1 10 1 . . . 2 . . . . . 1 . 1 . . . . . 1 . . . . 1 Tool/Special 6 | . . 1 . . . . . . . 1 . . . . . . . . . . . . 1 . . 2 1 Average Slot Usage (%) 75 | . 99 88 62 62 62 62 63 67 69 69 69 72 73 75 75 76 75 75 75 73 77 75 71 72 71 68 68 Engine 5 | . 14 8 6 5 9 9 9 7 7 7 1 . . . . . . . . . . . . . . . . Reactor 2 | . . . . . . . . . . . 5 6 6 5 5 5 5 5 5 5 5 9 9 8 7 5 7 Treads 9 | . 28 27 9 6 1 7 9 4 . . . 6 . . . . . . . . 2 . . . . . . Wheel 11 | . . . 9 10 16 10 9 17 23 23 22 13 18 17 16 17 17 16 13 17 16 13 19 17 17 16 15 Device 6 | . 9 4 6 4 1 . . 5 6 7 6 12 7 6 10 8 13 10 5 8 10 10 2 7 9 12 14 Storage 7 | . 14 8 8 9 9 9 9 7 7 7 7 6 7 5 5 6 5 5 5 5 5 4 4 4 4 4 3 Hackware 4 | . . . . . . . . . . . . . 3 9 11 11 8 11 16 15 15 14 14 13 11 8 3 Protection 6 | . 4 8 2 4 7 9 9 7 7 7 7 6 6 5 5 5 5 4 4 5 5 4 3 4 4 4 3 Energy Cannon 3 | . . . . 6 9 7 9 6 7 7 6 6 6 5 2 . 1 1 4 5 5 4 3 4 4 6 6 Ballistic Gun 1 | . 2 8 . . . . . . . . . . . . . . 3 3 . . . . . . . . . Ballistic Cannon 6 | . 22 19 9 2 . 1 . . . . . . . . 1 4 . . . . . . . . . . . Special Weapon 1 | . . . . . . . . . . . . 5 6 5 5 5 5 5 5 5 5 4 4 4 3 . . Special Melee Weapon 4 | . . . 8 9 9 9 9 7 7 7 7 6 6 5 5 5 5 5 5 5 5 4 4 4 4 4 3 Peak Build Rating 232 | 7 12 45 106 88 88 88 90 95 93 92 98 106 109 124 121 130 132 137 138 140 146 170 178 197 217 229 232 Average Rating 96 | 5 10 35 85 86 85 86 88 92 92 92 95 105 106 117 116 123 131 132 132 135 140 159 166 188 202 214 229 On Entrance 110 | . 7 12 45 85 88 85 88 90 92 92 92 98 106 109 116 119 130 132 134 136 140 146 158 178 192 209 218 Avg Prop Armor Cover (%) 7 | . . . 8 8 8 8 8 9 . . 8 6 6 . 7 . . . 4 . 5 4 . . . . . Naked Turns . | . . . . . . . . . . . . . . . . . . . . . . . . . . . . Heaviest Build 266 | 15 94 139 197 159 159 160 164 166 168 165 166 171 173 179 178 188 185 181 180 179 179 200 223 225 242 261 266 Greatest Support 80 | 40 40 80 80 32 32 32 10 42 42 42 42 26 36 36 36 30 30 30 30 40 40 46 56 56 68 68 68 Greatest Overweight (x) 16 | . 2 3 14 15 15 15 16 16 3 3 6 6 6 4 8 6 6 8 8 8 5 7 4 4 4 3 3 Average Overweight (x) 4 | . 1 1 10 11 5 12 15 7 3 3 3 6 4 4 4 5 6 5 6 4 4 5 3 3 3 3 3 Largest Inventory Capacity 25 | 8 25 25 25 25 25 25 25 25 25 25 25 25 25 25 25 25 25 25 25 25 25 25 25 25 25 25 25 Average Capacity 24 | 7 20 24 25 25 25 25 25 25 25 25 25 25 25 25 25 25 25 25 25 25 25 25 25 25 25 25 25 Most Carried 25 | 6 25 25 25 25 25 25 25 25 25 25 25 23 25 25 25 25 25 25 25 25 25 25 25 25 25 25 22 Average Carried 24 | 4 19 24 24 24 24 23 24 24 24 24 24 22 24 24 24 24 24 24 24 24 24 24 24 24 24 23 19 Final Capacity 25 | 8 25 25 25 25 25 25 25 25 25 25 25 25 25 25 25 25 25 25 25 25 25 25 25 25 25 25 25 Final Carried 25 | 6 25 24 25 25 25 25 25 25 25 25 24 22 25 25 25 25 25 25 25 25 25 25 25 25 25 19 21 Class Distribution -------------------- 41% | Mutant 25% | Bothacker-Mutant 12% | Gunner 6% | Botlord-Mutant 6% | Scavenger-Mutant 5% | Commander-Mutant Dominant Class ---------------- Mutant | -10/Materials Gunner | -10/Subcaves Mutant | -8/Materials Mutant | -8/Garrison Mutant | -8/Materials Mutant | -8/Garrison Mutant | -8/Materials Scavenger-Mutant | -7/Factory Bothacker-Mutant | -7/Garrison Bothacker-Mutant | -7/Factory Bothacker-Mutant | -7/Garrison Bothacker-Mutant | -6/Factory Bothacker-Mutant | -6/Garrison Bothacker-Mutant | -5/Factory Commander-Mutant | -5/Extension Commander-Mutant | -5/Cetus Commander-Mutant | -5/Archives Bothacker-Mutant | -5/Hub_04(d) Bothacker-Mutant | -5/Garrison Bothacker-Mutant | -4/Factory Bothacker-Mutant | -4/Garrison Botlord-Mutant | -3/Research Botlord-Mutant | -3/Testing Botlord-Mutant | -2/Research Bothacker-Mutant | -2/Quarantine Mutant | -2/Section 7 Scavenger-Mutant | -1/Access Resources | -11 -10 -10 -8 -8 -8 -8 -8 -7 -7 -7 -7 -6 -6 -5 -5 -5 -5 -5 -5 -4 -4 -3 -3 -2 -2 -2 -1 ----------- Run | Yrd Mat Sub Mat Gar Mat Gar Mat Fac Gar Fac Gar Fac Gar Fac Ext Cet Arc Hub Gar Fac Gar Res Tes Res Qua Sec Acc Matter Collected 26271 | 297 569 931 1681 1615 1399 952 37 494 1379 114 559 191 415 153 2427 1068 284 4831 199 61 60 85 1427 260 3079 370 1334 Remotely 5199 | . . . . . . 316 . 166 55 . 174 . 59 24 302 475 . 2315 78 . . . . 120 880 235 . Salvage Created 7444 | 149 352 318 579 121 323 285 144 338 385 14 132 52 91 54 688 . 252 58 . 504 256 508 24 327 471 515 504 Parts 362 | 8 29 24 46 8 11 20 . 20 22 1 6 . 7 4 13 . 11 7 . 11 8 24 . 18 8 34 22 Haulers Intercepted 2 | . 1 . 1 . . . . . . . . . . . . . . . . . . . . . . . . Recyclers Shooed 10 | . . . 3 . . . . 1 . . . . . . . . . . . 3 . 3 . . . . . Parts Field Recycled . | . . . . . . . . . . . . . . . . . . . . . . . . . . . . Retrieved Matter . | . . . . . . . . . . . . . . . . . . . . . . . . . . . . Parts Self-Destructed 11 | . . 11 . . . . . . . . . . . . . . . . . . . . . . . . . Prevented . | . . . . . . . . . . . . . . . . . . . . . . . . . . . . Parts Restored . | . . . . . . . . . . . . . . . . . . . . . . . . . . . . Kills | -11 -10 -10 -8 -8 -8 -8 -8 -7 -7 -7 -7 -6 -6 -5 -5 -5 -5 -5 -5 -4 -4 -3 -3 -2 -2 -2 -1 ------- Run | Yrd Mat Sub Mat Gar Mat Gar Mat Fac Gar Fac Gar Fac Gar Fac Ext Cet Arc Hub Gar Fac Gar Res Tes Res Qua Sec Acc Combat Hostiles Destroyed 96 | . 8 14 11 7 1 9 2 1 7 . 4 . 2 . 6 . . . . . 5 . . 4 2 8 5 Melee 1 | . . . . . . . . . . . . . 1 . . . . . . . . . . . . . . Guns 10 | . . 3 7 . . . . . . . . . . . . . . . . . . . . . . . . Cannons 71 | . 8 11 4 7 1 7 1 1 5 . 4 . 1 . 6 . . . . . 3 . . 3 1 7 1 Classes Destroyed 24 | 2 6 3 1 . . 2 . 1 1 . . . 1 . . . 1 . . . . . 1 1 2 . 2 Worker 24 | . 1 . 5 . 3 . . . . 1 . . . 1 1 . . 3 . 4 . 3 . . . 1 1 Builder 8 | . 1 . 2 . . . . . . . . . . . . . . . . . . 2 . . . 2 1 Tunneler 7 | 3 1 . . . . . . . . . . . . 1 . . . . . . . 2 . . . . . Hauler 2 | . 1 . 1 . . . . . . . . . . . . . . . . . . . . . . . . Recycler 19 | 1 1 . 3 . 2 . . 3 . . . . . . 3 . . . . 3 . 3 . . . . . Mechanic 3 | . . . . . . . . 1 . . . 1 1 . . . . . . . . . . . . . . Operator 5 | . . . . . . . . . . . . . . . . . 5 . . . . . . . . . . Watcher 7 | . 2 . . . 2 . 1 1 . . . . . . . . . . . . . . . . . . 1 Swarmer 33 | . 3 3 7 5 . 4 . 1 1 . 3 . 1 . 2 . . . . . 3 . . . . . . Saboteur 1 | . . . . . . . . . . . . . 1 . . . . . . . . . . . . . . Grunt 24 | . 5 1 3 . 1 1 1 . 3 . 1 . . . 3 . . . . . . . . 1 . 2 2 Brawler 3 | . . . . . . 2 1 . . . . . . . . . . . . . . . . . . . . Duelist 2 | . . . . . . . . . 1 . . . . . . . . . . . . . . 1 . . . Protector 2 | . . . . . . . . . . . . . . . . . . . . . . . . . 1 . 1 Researcher 1 | . . . . . . . . . . . . . . . . . . . . . . . 1 . . . . Sentry 7 | . . 1 . 2 . 1 . . 1 . . . . . . . . . . . 2 . . . . . . Hunter 1 | . . . 1 . . . . . . . . . . . . . . . . . . . . . . . . Programmer 8 | . . . . . . 1 . . 1 . . . . . . . . . . . . . . 1 . 5 . Behemoth 1 | . . . . . . . . . . . . . . . . . . . . . . . . 1 . . . S7 Guard 1 | . . . . . . . . . . . . . . . . . . . . . . . . . . 1 . Striker 1 | . . . . . . . . . . . . . . . . . . . . . . . . . . . 1 Executioner 1 | . . . . . . . . . . . . . . . . . . . . . . . . . . . 1 Fortress 1 | . . . . . . . . . . . . . . . . . . . . . . . . . 1 . . Artisan 1 | . . 1 . . . . . . . . . . . . . . . . . . . . . . . . . Subdweller 9 | . . 9 . . . . . . . . . . . . . . . . . . . . . . . . . Thug 1 | . . . . . . . . . . . . . . . . . 1 . . . . . . . . . . Butcher 1 | . . . . . . . . . . . . . . . 1 . . . . . . . . . . . . Best Kill Streak 7 | 2 3 2 7 3 1 6 3 2 4 1 2 1 1 1 2 . 3 2 . 1 4 2 1 2 1 2 4 Combat Bots Only 6 | . 3 2 5 3 1 6 2 1 4 . 2 . 1 . 2 . . . . . 4 . . 2 1 2 4 Max Kills in Single Turn 2 | 1 1 1 2 1 1 1 1 1 1 1 1 1 1 1 2 . 1 1 . 1 1 1 1 1 1 1 1 Gunslinging . | . . . . . . . . . . . . . . . . . . . . . . . . . . . . Exploded . | . . . . . . . . . . . . . . . . . . . . . . . . . . . . Melee 1 | . . . . . . . . . . . . . 1 . . . . . . . . . . . . . . Uniques/NPCs Destroyed . | . . . . . . . . . . . . . . . . . . . . . . . . . . . . Combat | -11 -10 -10 -8 -8 -8 -8 -8 -7 -7 -7 -7 -6 -6 -5 -5 -5 -5 -5 -5 -4 -4 -3 -3 -2 -2 -2 -1 -------- Run | Yrd Mat Sub Mat Gar Mat Gar Mat Fac Gar Fac Gar Fac Gar Fac Ext Cet Arc Hub Gar Fac Gar Res Tes Res Qua Sec Acc Hostile Shots Fired 894 | . 33 59 93 126 27 81 8 34 58 . 39 . 5 4 43 . 2 35 18 4 13 10 17 6 35 89 55 Missed 257 | . 4 14 21 44 9 31 4 11 20 . 8 . 1 2 12 . 1 6 6 2 2 4 7 4 11 22 11 Intercepted 1 | . . . . . . . . . . . . . . . . . . . . . . . 1 . . . . Hits 637 | . 29 45 72 82 18 50 4 23 38 . 31 . 4 2 31 . 1 29 12 2 11 6 10 2 24 67 44 Melee 3 | . . . . . . 1 . . . . . . 1 . . . . . 1 . . . . . . . . Projectile 634 | . 29 45 72 82 18 49 4 23 38 . 31 . 3 2 31 . 1 29 11 2 11 6 10 2 24 67 44 AOE 4 | . . . . . . . . . . . . . . . . . . 1 2 . . . 1 . . . . Critical Strikes 26 | . . 1 3 . 1 5 . 2 . . 2 . . . 2 . . 3 . . . . 1 1 1 4 . Part Disruptions 3 | . . . . . . . . . . . . . . . . . . 1 . . . . . . 1 1 . Damage Taken 11646 | . 326 863 1233 1173 387 720 121 517 610 . 344 . 77 64 582 87 14 902 315 40 321 151 256 96 751 969 727 Core 1653 | . 45 113 208 146 74 43 51 88 68 . 33 . . 8 86 14 . 213 . . 18 . 20 34 83 153 155 Absorbed by Shields 2016 | . . . 128 . . . . . 10 . 124 . 26 28 215 40 14 2 . . . . . . 25 839 565 Redirected to Shielding 10 | . 2 8 . . . . . . . . . . . . . . . . . . . . . . . . . Ignored by Resistances 451 | . . . . . . . . . . . . . . . . . . 451 . . . . . . . . . Regen/Repaired (Parts) 4103 | . 74 . 359 379 243 257 . 244 215 . 115 . 44 . 99 67 14 161 174 . . . 287 48 389 585 349 Core Remaining (%) 74 | 100 . 36 . . . . 5 . . . 73 . 100 . . . . . 67 . 98 . 98 . . 75 91 Volleys Fired 797 | 9 37 69 57 34 19 50 7 15 38 1 20 . 17 12 46 . 30 19 6 26 17 42 13 33 40 99 41 Largest 4 | 2 2 4 3 1 1 1 1 1 1 1 1 . 1 1 1 . 1 1 1 1 1 1 1 1 2 2 1 Hottest 150 | 70 70 127 116 69 69 69 69 69 69 69 69 . 69 90 69 . 90 90 69 90 81 90 94 94 144 150 150 Shots Fired 993 | 18 72 146 99 34 19 51 7 15 39 1 21 . 17 12 47 1 30 19 6 26 17 42 13 33 47 120 41 Gun 120 | 18 14 36 39 . . . . . . . . . . . . . 13 . . . . . . . . . . Cannon 852 | . 56 108 60 34 19 51 7 15 39 1 21 . 16 11 47 1 17 19 6 23 17 42 11 28 42 120 41 Launcher 2 | . 2 . . . . . . . . . . . . . . . . . . . . . . . . . . Special 19 | . . 2 . . . . . . . . . . 1 1 . . . . . 3 . . 2 5 5 . . Kinetic 392 | 9 63 144 82 24 . 14 . . . . 1 . . . 16 1 13 . 1 . . . 5 . 3 16 . Thermal 244 | 9 7 2 . . . . . 11 2 . . . . 11 . . 17 19 . 11 . 9 . 20 29 79 18 Explosive 2 | . 2 . . . . . . . . . . . . . . . . . . . . . . . . . . Electromagnetic 340 | . . . 17 10 19 37 7 4 37 1 20 . 16 . 31 . . . 5 12 17 33 6 8 12 25 23 Robot Hit Streak 18 | 11 10 18 7 10 5 7 9 6 7 8 4 . 6 6 7 . 11 2 2 9 5 7 3 8 7 11 7 Robot Miss Streak 7 | 1 7 2 5 3 2 2 1 2 1 . 4 . 2 2 2 1 4 3 3 1 2 5 1 2 2 4 2 Penetration Max 1 | . . . . . . . . . . . . . . . 1 . 1 . . . . . . . . . . Secondary Targets . | . . . . . . . . . . . . . . . . . . . . . . . . . . . . Capacitor 41 | . . . . . . . . . . . . . . . . . . . . . . . . . . . 41 Shots Hit Robots 520 | 14 37 79 55 18 12 26 6 10 22 1 9 1 8 8 32 . 20 5 1 21 11 26 3 19 17 42 17 Core Hits 215 | 5 18 23 29 6 7 7 2 7 7 1 4 . 3 3 15 . 10 4 . 9 6 12 2 7 5 15 8 Critical Kills 2 | . . 1 . . . . . . . . . . . . . . 1 . . . . . . . . . . Critical Parts Destroyed 3 | . . . . . . . . . . . . . . . . . 3 . . . . . . . . . . Critical Strikes 18 | . 1 3 1 2 . 1 1 . 1 . . . . . 2 . 4 . . . . . . . . 2 . Destroy 5 | . . 1 . . . . . . . . . . . . . . 4 . . . . . . . . . . Blast 10 | . 1 2 1 2 . 1 . . . . . . . . 1 . . . . . . . . . . 2 . Corrupt 3 | . . . . . . . 1 . 1 . . . . . 1 . . . . . . . . . . . . Melee Attacks 9 | . . . . . . 4 . 2 . . . 1 . . . . . . . . . . . . 2 . . Kinetic 2 | . . . . . . . . . . . . . . . . . . . . . . . . . 2 . . Impact 7 | . . . . . . 4 . 2 . . . 1 . . . . . . . . . . . . . . . Slashing . | . . . . . . . . . . . . . . . . . . . . . . . . . . . . Piercing . | . . . . . . . . . . . . . . . . . . . . . . . . . . . . Sneak Attacks 1 | . . . . . . . . . . . . 1 . . . . . . . . . . . . . . . Combat Hostiles . | . . . . . . . . . . . . . . . . . . . . . . . . . . . . Follow-up Attacks . | . . . . . . . . . . . . . . . . . . . . . . . . . . . . Damage Inflicted 15602 | 177 759 1469 1103 506 476 789 296 261 594 31 244 106 175 232 1413 26 682 182 30 643 380 917 187 545 513 1951 915 Guns 1621 | 177 143 524 406 . . . . . . . . . . . . . 371 . . . . . . . . . . Cannons 13026 | . 585 945 697 506 414 789 191 261 594 31 244 . 175 232 1139 26 311 182 30 589 328 917 187 545 450 1951 707 Explosions 786 | . 31 . . . 62 . 105 . . . . . . . 274 . . . . 54 52 . . . . . 208 Melee 169 | . . . . . . . . . . . . 106 . . . . . . . . . . . . 63 . . Ramming . | . . . . . . . . . . . . . . . . . . . . . . . . . . . . Kinetic 5668 | 88 667 1469 929 374 . 356 . . . . . . . . 433 26 371 . . . . . 109 . 63 783 . Thermal 3863 | 89 61 . . . 62 . 105 187 33 . . . . 232 274 . 311 182 . 311 . 98 . 395 210 1022 291 Explosive 31 | . 31 . . . . . . . . . . . . . . . . . . . . . . . . . . Electromagnetic 5934 | . . . 174 132 414 433 191 74 561 31 244 . 175 . 706 . . . 30 332 380 819 78 150 240 146 624 Impact 106 | . . . . . . . . . . . . 106 . . . . . . . . . . . . . . . Slashing . | . . . . . . . . . . . . . . . . . . . . . . . . . . . . Piercing . | . . . . . . . . . . . . . . . . . . . . . . . . . . . . Highest Corruption 5 | . . . . 1 . 1 1 . 1 1 1 . . . 2 2 5 2 . . . . . . 5 5 . Average Corruption 1 | . . . . 1 . 1 1 . 1 1 1 . . . 2 2 2 1 . . . . . . 2 5 . Corruption Purged 8 | . . . . 1 . . . . . . . . . . . . 5 2 . . . . . . . . . Corruption Blocked . | . . . . . . . . . . . . . . . . . . . . . . . . . . . . Effects 114 | . . . . 4 . 10 9 . 6 2 7 . . . 22 4 3 6 . . . . . . 12 29 . Message Errors 15 | . . . . . . 1 4 . 1 . 2 . . . 3 . . 2 . . . . . . . 2 . Matter Fused 31 | . . . . 2 . 3 3 . 1 . . . . . 6 2 2 1 . . . . . . 3 8 . Heat Flow Errors 17 | . . . . 1 . 3 . . . . 1 . . . 6 . . . . . . . . . 2 4 . Energy Discharges 17 | . . . . 1 . 1 . . 2 2 1 . . . 2 . . 1 . . . . . . 4 3 . Parts Fused 1 | . . . . . . . . . . . . . . . . . . . . . . . . . . 1 . Data Loss (minor) 10 | . . . . . . 1 . . . . 1 . . . 3 . . 1 . . . . . . 1 3 . Data Loss (major) 9 | . . . . . . . 2 . 1 . 1 . . . 1 1 1 . . . . . . . 1 1 . Misfires 11 | . . . . . . 1 . . 1 . 1 . . . 1 1 . . . . . . . . 1 5 . Alerts 3 | . . . . . . . . . . . . . . . . . . 1 . . . . . . . 2 . Overload Shots 4 | . . . . . . . . . . . . . . . . . . . . . . . . . . 3 1 Overflow Damage 696 | . 11 3 3 37 31 52 31 . . . 1 66 . 37 70 . 32 . . 1 . 66 . . 17 193 45 Projectiles 583 | . 11 3 3 37 31 52 31 . . . 1 . . 37 68 . 32 . . 1 . 66 . . 17 193 . Explosions 47 | . . . . . . . . . . . . . . . 2 . . . . . . . . . . . 45 Melee 66 | . . . . . . . . . . . . 66 . . . . . . . . . . . . . . . Knockbacks 46 | . 3 14 8 4 . 1 . . . . . . . . 3 . . . . . . . 2 . . 11 . Impact . | . . . . . . . . . . . . . . . . . . . . . . . . . . . . Kinetic 45 | . 3 13 8 4 . 1 . . . . . . . . 3 . . . . . . . 2 . . 11 . Secondary 1 | . . 1 . . . . . . . . . . . . . . . . . . . . . . . . . Self-Inflicted Damage 187 | . . . . . 38 . . . . . . . . . 50 . . . . . . . . . . . 99 Shots 3 | . . . . . 1 . . . . . . . . . 1 . . . . . . . . . . . 1 Rammed . | . . . . . . . . . . . . . . . . . . . . . . . . . . . . Targets Rammed . | . . . . . . . . . . . . . . . . . . . . . . . . . . . . Kicked . | . . . . . . . . . . . . . . . . . . . . . . . . . . . . Crushed . | . . . . . . . . . . . . . . . . . . . . . . . . . . . . Highest Temperature 396 | 36 132 233 102 98 84 233 177 146 210 24 230 . 16 72 168 . 340 68 24 84 99 192 132 364 213 396 392 Average Temperature 60 | 14 24 36 34 31 32 67 92 48 49 12 57 . 9 31 28 . 117 30 12 28 35 57 51 85 66 136 94 Received Heat Transfer 2001 | . 129 389 144 306 144 180 9 126 141 . 105 . 9 . 50 4 . 47 54 9 36 . . 9 13 81 16 Effects 4 | . . . . . . . . . . . . . . . . . . . . . . . . . . 4 . Shutdowns 1 | . . . . . . . . . . . . . . . . . . . . . . . . . . 1 . Energy Bleed 1 | . . . . . . . . . . . . . . . . . . . . . . . . . . 1 . Interference 2 | . . . . . . . . . . . . . . . . . . . . . . . . . . 2 . Siege Activations . | . . . . . . . . . . . . . . . . . . . . . . . . . . . . Martial Activations . | . . . . . . . . . . . . . . . . . . . . . . . . . . . . Shielding Activations . | . . . . . . . . . . . . . . . . . . . . . . . . . . . . Robots Disrupted . | . . . . . . . . . . . . . . . . . . . . . . . . . . . . Combat Hostiles . | . . . . . . . . . . . . . . . . . . . . . . . . . . . . Robots Corrupted 17 | . . . . . . 2 1 . 2 . . 1 . . 2 . . . . 1 2 . . 1 . 1 4 Combat Hostiles 13 | . . . . . . 2 1 . 2 . . . . . . . . . . . 2 . . 1 . 1 4 Parts Fried 54 | . . . 2 . 2 . 1 . 7 1 . 1 . . 10 . . . . 4 5 10 . 1 . . 10 Impact Corruptions 3 | . . . . . . . . . . . . 3 . . . . . . . . . . . . . . . Robots Melted . | . . . . . . . . . . . . . . . . . . . . . . . . . . . . Combat Hostiles . | . . . . . . . . . . . . . . . . . . . . . . . . . . . . Parts Melted 8 | . . 1 . . . . . . 1 . 1 . . . 1 . 1 . . 1 . . . 1 . 1 . Heat Transferred 4305 | 259 185 . . . 50 . 100 259 37 . . . . 350 300 . 476 275 . 450 . 150 . 333 149 777 155 Parts Sabotaged . | . . . . . . . . . . . . . . . . . . . . . . . . . . . . Parts Stolen . | . . . . . . . . . . . . . . . . . . . . . . . . . . . . Parts Stripped 18 | . . . . . . . . . . . . . . . . . . . . . . . . . 18 . . Power Chain Reactions 8 | . . . . . 1 . 1 . . . . . . . 3 . . . . 1 1 . . . . . 1 Alert | -11 -10 -10 -8 -8 -8 -8 -8 -7 -7 -7 -7 -6 -6 -5 -5 -5 -5 -5 -5 -4 -4 -3 -3 -2 -2 -2 -1 ------- Run | Yrd Mat Sub Mat Gar Mat Gar Mat Fac Gar Fac Gar Fac Gar Fac Ext Cet Arc Hub Gar Fac Gar Res Tes Res Qua Sec Acc Maximum Alert Level 5 | . . . . 2 1 4 3 1 4 2 4 3 4 3 3 2 1 4 5 3 5 3 4 3 3 5 5 Low Security (%) 32 | 100 100 . 100 22 30 10 . 72 2 86 19 . . . 53 . 5 47 . . . . . . . . . Level 1 16 | . . . . 19 69 1 . 27 19 . 4 . . 23 19 12 94 21 . . . . . 29 38 . . Level 2 22 | . . . . 58 . 21 85 . 15 13 8 52 45 53 8 87 . 14 . 29 13 35 20 45 9 91 . Level 3 18 | . . . . . . 61 14 . 55 . 40 47 17 23 17 . . 13 30 70 3 64 26 25 51 . . Level 4 5 | . . . . . . 4 . . 6 . 26 . 36 . . . . 2 51 . 23 . 52 . . . 3 Level 5 1 | . . . . . . . . . . . . . . . . . . . 18 . 60 . . . . . . High Security . | . . . . . . . . . . . . . . . . . . . . . . . . . . . . Max Security 1 | . . . . . . . . . . . . . . . . . . . . . . . . . . 8 96 Peak Influence 2776 | 10 135 . 134 601 300 1102 848 259 1112 583 1411 777 1439 899 941 508 346 1107 1667 1019 1901 1068 1553 917 1083 1922 2776 Initial 1152 | . . . 28 9 292 80 536 214 95 583 . 740 424 755 155 508 154 80 758 875 519 1068 513 863 378 584 1152 Average 508 | 1 38 . 30 360 218 741 587 173 721 117 736 693 943 544 294 438 271 346 1312 799 1552 754 1095 552 649 684 2174 Influence Increases 23877 | 20 320 200 510 812 645 1102 810 321 1037 82 1421 75 1075 399 1784 277 282 2164 1069 565 1392 680 2222 1072 1413 782 1346 Destroy 0b10 Robot/C 10560 | . 160 100 320 480 340 700 480 200 600 40 760 20 540 180 720 120 80 780 460 160 560 260 780 340 500 360 520 Destroy 0b10 Robot/NC 690 | 20 35 . 80 . 55 . 25 30 . 5 . 5 10 30 50 10 25 50 . 45 . 50 35 25 40 15 50 Destroy Leader 1438 | . 46 10 60 30 100 30 140 34 40 10 50 10 40 44 66 . . 184 40 44 40 50 96 86 66 50 72 Allied During Kill 7579 | . . . 13 58 86 147 155 54 198 27 569 25 386 111 815 130 105 892 500 234 600 266 911 416 549 72 260 Successful Hack 571 | . 47 . 24 14 15 . 5 . 14 . 7 . 14 7 17 7 . 23 22 34 12 36 92 139 30 12 . Disable Machine 990 | . . . . 30 30 15 . . 45 . 15 15 30 15 30 . 60 120 . 30 45 . 135 30 135 150 60 Anti-Garrison Action 650 | . . . . 150 . 150 . . 100 . . . 50 . . . . . . . 50 . . . . . 150 Destroy Structure 994 | . 17 . 13 20 4 60 5 3 40 . 20 . 5 12 56 10 12 70 47 18 10 18 128 36 63 123 204 Partial Spotted 15 | . . . . . . . . . . . . . . . . . . 15 . . . . . . . . . Lose Combat Pursuer 390 | . 15 90 . 30 15 . . . . . . . . . 30 . . 30 . . 75 . 45 . 30 . 30 Influence Decreases 22515 | 20 256 209 551 225 1122 124 1440 656 62 1193 11 879 243 1520 1194 798 439 1311 485 1490 233 1669 1599 1935 1046 865 940 Entered New Map 9060 | . . 32 27 5 309 44 566 258 42 529 1 671 183 684 163 400 233 150 325 792 223 833 399 672 294 455 770 Time Decay 7059 | 20 256 177 414 . 693 . 474 368 . 214 . 198 . 506 537 238 206 424 . 238 . 356 410 398 522 410 . Lost Part 250 | . . . 50 40 . 20 . 10 . . 10 . . . 10 . . 30 10 10 10 30 . . 10 . 10 Lost Ally 1571 | . . . 60 180 120 60 100 20 20 . . 10 60 30 184 160 . 257 . . . . 40 40 70 . 160 Purge Threat 4575 | . . . . . . . 300 . . 450 . . . 300 300 . . 450 150 450 . 450 750 825 150 . . Squads Dispatched 100 | . 2 . 1 . 3 . 5 2 . 2 . 1 . 5 3 . . 8 . 3 . 2 9 3 7 9 35 Investigation 6 | . 1 . . . 1 . . . . . . . . 1 . . . . . 1 . 2 . . . . . Extermination 16 | . . . . . . . . 2 . 1 . . . 2 . . . 2 . . . . 2 2 3 2 . Reinforcement 24 | . 1 . 1 . 1 . 4 . . 1 . . . 1 2 . . 3 . 1 . . 4 . 3 1 1 Assault 49 | . . . . . . . 1 . . . . 1 . 1 1 . . . . 1 . . 3 1 1 6 33 Garrison 5 | . . . . . 1 . . . . . . . . . . . . 3 . . . . . . . . 1 Intercept . | . . . . . . . . . . . . . . . . . . . . . . . . . . . . Searches Triggered . | . . . . . . . . . . . . . . . . . . . . . . . . . . . . Construction Impeded 4 | . . . . . . . . . . . . . . . 1 . . 1 . . . . 1 . . . 1 Haulers Reinforced . | . . . . . . . . . . . . . . . . . . . . . . . . . . . . Active Scanning Responses 1 | . . . . 1 . . . . . . . . . . . . . . . . . . . . . . . Cargo Convoy Interrupts . | . . . . . . . . . . . . . . . . . . . . . . . . . . . . Stealth | -11 -10 -10 -8 -8 -8 -8 -8 -7 -7 -7 -7 -6 -6 -5 -5 -5 -5 -5 -5 -4 -4 -3 -3 -2 -2 -2 -1 --------- Run | Yrd Mat Sub Mat Gar Mat Gar Mat Fac Gar Fac Gar Fac Gar Fac Ext Cet Arc Hub Gar Fac Gar Res Tes Res Qua Sec Acc Distress Signals 30 | . . . 2 . 5 . 4 1 . . . 1 . . . 2 . 1 . . . 9 3 . 1 . 1 Communications Jammed 430 | . . . . . . . . 39 . . . . . 52 . . 1 281 . 12 . . 2 . 37 6 . Distress Signals 429 | . . . . . . . . 39 . . . . . 52 . . 1 281 . 11 . . 2 . 37 6 . Times Spotted 587 | . 12 17 37 34 28 39 25 17 32 . 25 . 25 11 48 8 13 36 17 7 21 8 29 16 28 15 39 Peak Tracking Total 10 | . 3 3 5 10 3 10 6 5 5 . 5 . 7 3 7 5 1 7 3 2 7 3 5 4 5 5 8 Tactical Retreats 21 | . 1 5 . 2 1 . . . . . . . . . 2 . . 2 . . 3 . 2 . 2 . 1 Traps | -11 -10 -10 -8 -8 -8 -8 -8 -7 -7 -7 -7 -6 -6 -5 -5 -5 -5 -5 -5 -4 -4 -3 -3 -2 -2 -2 -1 ------- Run | Yrd Mat Sub Mat Gar Mat Gar Mat Fac Gar Fac Gar Fac Gar Fac Ext Cet Arc Hub Gar Fac Gar Res Tes Res Qua Sec Acc Traps Triggered 39 | . . 1 . 2 1 5 . 3 5 . 4 . 1 1 1 . . . 5 . 5 . 1 2 . . 2 Indirectly . | . . . . . . . . . . . . . . . . . . . . . . . . . . . . Trap Hack Attempts . | . . . . . . . . . . . . . . . . . . . . . . . . . . . . Triggered . | . . . . . . . . . . . . . . . . . . . . . . . . . . . . Disarmed . | . . . . . . . . . . . . . . . . . . . . . . . . . . . . Reprogrammed . | . . . . . . . . . . . . . . . . . . . . . . . . . . . . Reused . | . . . . . . . . . . . . . . . . . . . . . . . . . . . . Traps Extracted . | . . . . . . . . . . . . . . . . . . . . . . . . . . . . Installed . | . . . . . . . . . . . . . . . . . . . . . . . . . . . . Triggered . | . . . . . . . . . . . . . . . . . . . . . . . . . . . . Most Traps Carried 1 | . . . . 1 . . . . . . . . . . . . . . . . . . . . . . . Machines | -11 -10 -10 -8 -8 -8 -8 -8 -7 -7 -7 -7 -6 -6 -5 -5 -5 -5 -5 -5 -4 -4 -3 -3 -2 -2 -2 -1 ---------- Run | Yrd Mat Sub Mat Gar Mat Gar Mat Fac Gar Fac Gar Fac Gar Fac Ext Cet Arc Hub Gar Fac Gar Res Tes Res Qua Sec Acc Machines Disabled 83 | . 1 2 . 3 2 2 . . 4 . 1 1 3 1 5 . 4 8 . 2 4 . 10 2 10 13 5 Max in Single Turn 2 | . 1 1 . 1 1 1 . . 1 . 1 . 1 1 2 . 1 1 . . 1 . 1 . 1 1 1 Garrison Access 4 | . . . . . . . . . . . . . . 1 . . . . . . . . . 1 1 . 1 Garrison Relay 4 | . . . . 1 . 1 . . 1 . . . . . . . . . . . 1 . . . . . . Network Hub 3 | . . . . . . . . . . . . . . . . . . 3 . . . . . . . . . Machines Repaired . | . . . . . . . . . . . . . . . . . . . . . . . . . . . . Machines Dismantled 7 | . . . . . . . . . . . . . . . 1 . . 3 . . 1 . . . 2 . . Machines Sabotaged . | . . . . . . . . . . . . . . . . . . . . . . . . . . . . Overloaded Fab Kills . | . . . . . . . . . . . . . . . . . . . . . . . . . . . . Hacking | -11 -10 -10 -8 -8 -8 -8 -8 -7 -7 -7 -7 -6 -6 -5 -5 -5 -5 -5 -5 -4 -4 -3 -3 -2 -2 -2 -1 --------- Run | Yrd Mat Sub Mat Gar Mat Gar Mat Fac Gar Fac Gar Fac Gar Fac Ext Cet Arc Hub Gar Fac Gar Res Tes Res Qua Sec Acc Machines Accessed 111 | . 8 4 8 2 8 3 4 1 2 3 5 2 2 5 8 1 . 5 2 5 2 4 9 7 7 4 . Terminals 88 | . 7 . 6 2 5 3 4 . 2 1 5 1 2 4 8 1 . 4 2 2 2 3 8 6 6 4 . Fabricators . | . . . . . . . . . . . . . . . . . . . . . . . . . . . . Repair Stations 3 | . 1 . . . 1 . . . . 1 . . . . . . . . . . . . . . . . . Recycling Units 1 | . . . . . . . . . . . . . . . . . . . . 1 . . . . . . . Scanalyzers 5 | . . . 1 . 1 . . . . . . . . . . . . . . 1 . 1 1 . . . . Garrison Access 10 | . . . 1 . 1 . . 1 . 1 . 1 . 1 . . . 1 . 1 . . . 1 1 . . Total Hacks 302 | . 24 9 20 3 20 6 10 1 3 9 7 2 4 10 14 2 . 19 6 19 10 16 39 23 18 8 . Successful 148 | . 13 9 12 1 14 1 5 1 1 4 1 2 1 4 4 1 . 11 3 9 1 5 19 15 8 3 . Failed 153 | . 11 . 7 2 6 5 5 . 2 5 6 . 3 6 10 1 . 8 3 10 9 11 20 8 10 5 . Catastrophic 35 | . 1 . 1 . 1 1 2 . 1 1 2 . 1 2 3 . . 1 . 3 3 3 5 1 1 2 . Database Lockouts 1 | . . . 1 . . . . . . . . . . . . . . . . . . . . . . . . Manual 88 | . 12 . 4 1 5 . 6 . . . . 1 . 7 9 1 . 2 4 13 7 . 8 4 4 . . Terminals 253 | . 22 . 16 3 12 6 10 . 3 6 7 1 4 9 14 2 . 18 6 10 10 12 35 22 17 8 . Fabricators . | . . . . . . . . . . . . . . . . . . . . . . . . . . . . Repair Stations 8 | . 2 . . . 4 . . . . 2 . . . . . . . . . . . . . . . . . Recycling Units 3 | . . . . . . . . . . . . . . . . . . . . 3 . . . . . . . Scanalyzers 19 | . . . 3 . 3 . . . . . . . . . . . . . . 5 . 4 4 . . . . Garrison Access 10 | . . . 1 . 1 . . 1 . 1 . 1 . 1 . . . 1 . 1 . . . 1 1 . . Terminal Hacks 102 | . 9 9 8 1 6 1 4 . 1 3 1 1 1 3 3 1 . 8 2 3 1 3 12 12 6 3 . Record 9 | . . 6 . . . . . . . . . . . . . . . . . . . . . . 3 . . Part Schematic 3 | . 1 . . . . . . . . . . . . . . . . . . . . . 1 1 . . . Robot Analysis 3 | . 3 . . . . . . . . . . . . . . . . . . . . . . . . . . Prototype ID Bank 6 | . 2 . 2 . . . . . . . . . . . . . . 1 . . . . . 1 . . . Open Door 8 | . . 1 . . . . . . . . 1 . . . 1 1 . . . . . . 1 1 1 1 . Branch Access Points 3 | . . . . . . . . . . . . 1 . 1 . . . . . . . . . 1 . . . Emergency Access Points 6 | . . . . 1 1 1 . . 1 . . . 1 . . . . 1 . . . . . . . . . Machine Index 1 | . . . . . . . . . . . . . . . . . . 1 . . . . . . . . . Terminal Index 1 | . . . . . . . . . . . . . . . . . . . . . . . . . . 1 . Garrison Index 1 | . . . . . . . . . . . . . . . . . . . . . . . 1 . . . . Unreport Threat 27 | . . . . . . . 2 . . 3 . . . 2 2 . . 3 1 3 . 3 5 3 . . . Locate Traps 14 | . 2 . 2 . 2 . 2 . . . . . . . . . . . . . . . 3 1 2 . . Security Status 2 | . . . 1 . . . . . . . . . . . . . . . . . . . . 1 . . . Patrol Status 1 | . . . . . . . . . . . . . . . . . . . . . . . . 1 . . . Recall Extermination 1 | . . . . . . . . . . . . . . . . . . 1 . . . . . . . . . Hauler Manifests 3 | . 1 . 1 . 1 . . . . . . . . . . . . . . . . . . . . . . Zone Layout 7 | . . . 2 . 2 . . . . . . . . . . . . 1 . . . . . 2 . . . Garrison Registry 1 | . . . . . . . . . . . . . . . . . . . 1 . . . . . . . . Security Stations 1 | . . . . . . . . . . . . . . . . . . . . . 1 . . . . . . Proto ID Catalog 1 | . . 1 . . . . . . . . . . . . . . . . . . . . . . . . . Protovariant Controls 1 | . . . . . . . . . . . . . . . . . . . . . . . 1 . . . . Activate Exoskeleton 1 | . . . . . . . . . . . . . . . . . . . . . . . . . . 1 . Release Object 1 | . . 1 . . . . . . . . . . . . . . . . . . . . . . . . . Fabricator Hacks . | . . . . . . . . . . . . . . . . . . . . . . . . . . . . Repair Station Hacks 5 | . 2 . . . 3 . . . . . . . . . . . . . . . . . . . . . . Scan Component 3 | . 1 . . . 2 . . . . . . . . . . . . . . . . . . . . . . Repair 2 | . 1 . . . 1 . . . . . . . . . . . . . . . . . . . . . . Recycling Unit Hacks . | . . . . . . . . . . . . . . . . . . . . . . . . . . . . Scanalyzer 14 | . . . 2 . 3 . . . . . . . . . . . . . . 3 . 2 4 . . . . Insert Component 4 | . . . 1 . . . . . . . . . . . . . . . . 1 . . 2 . . . . Analyze 1 | . . . . . . . . . . . . . . . . . . . . . . . 1 . . . . Retrieve Study 9 | . . . 1 . 3 . . . . . . . . . . . . . . 2 . 2 1 . . . . Garrison Access Hacks 10 | . . . 1 . 1 . . 1 . 1 . 1 . 1 . . . 1 . 1 . . . 1 1 . . Unlock Access 7 | . . . 1 . 1 . . 1 . 1 . 1 . . . . . 1 . 1 . . . . . . . Seal Access 3 | . . . . . . . . . . . . . . 1 . . . . . . . . . 1 1 . . Unauthorized Hacks 17 | . 2 . 1 . 1 . 1 . . . . . . . 1 . . 2 1 2 . . 3 2 1 . . Terminals 15 | . 2 . 1 . 1 . 1 . . . . . . . 1 . . 2 1 . . . 3 2 1 . . Botnet 12 | . 2 . 1 . 1 . 1 . . . . . . . 1 . . 1 1 . . . 2 1 1 . . Operators 3 | . . . . . . . . . . . . . . . . . . 1 . . . . 1 1 . . . Fabricators . | . . . . . . . . . . . . . . . . . . . . . . . . . . . . Repair Stations . | . . . . . . . . . . . . . . . . . . . . . . . . . . . . Recycling Units 2 | . . . . . . . . . . . . . . . . . . . . 2 . . . . . . . Recyclers 1 | . . . . . . . . . . . . . . . . . . . . 1 . . . . . . . Mask 1 | . . . . . . . . . . . . . . . . . . . . 1 . . . . . . . Scanalyzers . | . . . . . . . . . . . . . . . . . . . . . . . . . . . . Garrison Access . | . . . . . . . . . . . . . . . . . . . . . . . . . . . . Data Cores Recovered 1 | . . . . . . . . . . . . . . . . . . . . . . . . 1 . . . Used . | . . . . . . . . . . . . . . . . . . . . . . . . . . . . Hacking Detections 68 | . 5 . 6 1 4 3 4 . 1 2 4 . 2 4 7 . . 5 1 3 2 4 4 1 3 2 . Full Trace Events 4 | . 1 . . . . . . . 1 . . . 1 . . . . . . 1 . . . . . . . Feedback Events . | . . . . . . . . . . . . . . . . . . . . . . . . . . . . Feedback Blocked . | . . . . . . . . . . . . . . . . . . . . . . . . . . . . Robot Schematics Acquired 4 | . . . . . . . . . . . . . . . . . . . . . . . 4 . . . . Robots Built . | . . . . . . . . . . . . . . . . . . . . . . . . . . . . Authchips . | . . . . . . . . . . . . . . . . . . . . . . . . . . . . Time . | . . . . . . . . . . . . . . . . . . . . . . . . . . . . Total Robot Build Rating . | . . . . . . . . . . . . . . . . . . . . . . . . . . . . Part Schematics Acquired 21 | . 1 . . . . . . . . . . . . . . . . . . . . . 19 1 . . . Parts Built . | . . . . . . . . . . . . . . . . . . . . . . . . . . . . Authchips . | . . . . . . . . . . . . . . . . . . . . . . . . . . . . Time . | . . . . . . . . . . . . . . . . . . . . . . . . . . . . Total Part Build Rating . | . . . . . . . . . . . . . . . . . . . . . . . . . . . . Part Studies Acquired 9 | . . . 1 . 3 . . . . . . . . . . . . . . 2 . 2 1 . . . . Parts Repaired 2 | . 1 . . . 1 . . . . . . . . . . . . . . . . . . . . . . Time 76 | . 32 . . . 44 . . . . . . . . . . . . . . . . . . . . . . Parts Recycled . | . . . . . . . . . . . . . . . . . . . . . . . . . . . . Recycled Matter . | . . . . . . . . . . . . . . . . . . . . . . . . . . . . Retrieved Matter . | . . . . . . . . . . . . . . . . . . . . . . . . . . . . Retrieved Components . | . . . . . . . . . . . . . . . . . . . . . . . . . . . . Parts Scanalyzed 1 | . . . . . . . . . . . . . . . . . . . . . . . 1 . . . . Part Schematics Acquired 1 | . . . . . . . . . . . . . . . . . . . . . . . 1 . . . . Parts Damaged . | . . . . . . . . . . . . . . . . . . . . . . . . . . . . Bothacking | -11 -10 -10 -8 -8 -8 -8 -8 -7 -7 -7 -7 -6 -6 -5 -5 -5 -5 -5 -5 -4 -4 -3 -3 -2 -2 -2 -1 ------------ Run | Yrd Mat Sub Mat Gar Mat Gar Mat Fac Gar Fac Gar Fac Gar Fac Ext Cet Arc Hub Gar Fac Gar Res Tes Res Qua Sec Acc Used RIF Installer 8 | . . . . 2 . 1 . . 1 . 1 . 1 . . . . . 1 . 1 . . . . . . Coupler Efficiency 2 | . . . . 1 . . . . . . 1 . . . . . . . . . . . . . . . . Hotswap 1 | . . . . . . . . . . . . . 1 . . . . . . . . . . . . . . Zone Cloak 1 | . . . . . . . . . . . . . . . . . . . 1 . . . . . . . . Patrol Navigation 1 | . . . . . . 1 . . . . . . . . . . . . . . . . . . . . . Structural Interface 1 | . . . . . . . . . 1 . . . . . . . . . . . . . . . . . . Crosswire 1 | . . . . . . . . . . . . . . . . . . . . . 1 . . . . . . Robots Hacked 8 | . . . . . . . . . . . . . 1 1 . . . . . 2 . . 1 2 1 . . Non-combat 5 | . . . . . . . . . . . . . . 1 . . . . . 1 . . . 2 1 . . Combat 3 | . . . . . . . . . . . . . 1 . . . . . . 1 . . 1 . . . . Robot Hacks Applied 11 | . . . . . . . . . . . . . 1 1 . . . . . 2 . . 1 4 2 . . parse_system 1 | . . . . . . . . . . . . . . . . . . . . 1 . . . . . . . find_chute 1 | . . . . . . . . . . . . . . . . . . . . 1 . . . . . . . purge_threat 4 | . . . . . . . . . . . . . . . . . . . . . . . . 3 1 . . map_route 2 | . . . . . . . . . . . . . . 1 . . . . . . . . . 1 . . . locate_prototypes 1 | . . . . . . . . . . . . . . . . . . . . . . . 1 . . . . formatsys_high 2 | . . . . . . . . . . . . . 1 . . . . . . . . . . . 1 . . Relay Couplers Released 29 | . . . . 9 . 4 4 . 4 . . . . . . . . . . . 5 . . . . . 3 Machine Destruction 21 | . . . . 5 . 4 . . 4 . . . . . . . . . . . 5 . . . . . 3 Programmers 8 | . . . . 4 . . 4 . . . . . . . . . . . . . . . . . . . . Attached 3 | . . . . . . . . . . . . . 1 1 . . . . 1 . . . . . . . . Crosswired 1 | . . . . . . . . . . . . . . . . . . . . . 1 . . . . . . Fabnet Peak Effective % . | . . . . . . . . . . . . . . . . . . . . . . . . . . . . Robots Rewired 35 | . . . . . . 3 . . 1 . . . . . 25 . . . 1 . 5 . . . . . . Allies Hacked 23 | . . . . . . 2 . . . . 4 . . 1 . . . 1 . . . . 5 1 9 . . Hacks Repelled 1 | . . . . . . . . . . . . . 1 . . . . . . . . . . . . . . Allies | -11 -10 -10 -8 -8 -8 -8 -8 -7 -7 -7 -7 -6 -6 -5 -5 -5 -5 -5 -5 -4 -4 -3 -3 -2 -2 -2 -1 -------- Run | Yrd Mat Sub Mat Gar Mat Gar Mat Fac Gar Fac Gar Fac Gar Fac Ext Cet Arc Hub Gar Fac Gar Res Tes Res Qua Sec Acc Total Allies 50 | . . . . . . 3 . . 1 . 3 . 3 . 27 5 . . 1 . 5 . . . 1 1 . Largest Group 17 | . . . . . . 3 3 . 1 1 4 3 3 1 17 17 13 11 1 1 6 5 4 1 2 1 1 Highest-Rated Group 1204 | . . . . . . 15 15 . 32 32 246 151 204 29 619 812 682 508 148 148 392 244 195 51 96 1204 1204 Highest-Rated Ally 1204 | . . . . . . 5 5 . 32 32 95 80 85 29 159 143 143 96 148 148 148 51 51 51 51 1204 1204 Total Orders 71 | . . . 14 6 8 . . . . . . 12 . 1 . . 4 2 6 4 1 4 . 4 1 2 2 STAY 22 | . . . 8 . . . . . . . . . . . . . 2 1 3 2 1 2 . 2 . 1 . ROAM 4 | . . . . . 1 . . . . . . 1 . . . . . . . . . . . . . . 2 FOLLOW 23 | . . . 6 1 1 . . . . . . 1 . . . . 2 1 3 2 . 2 . 2 1 1 . EXPLORE 15 | . . . . 3 5 . . . . . . 6 . 1 . . . . . . . . . . . . . RETURN 7 | . . . . 2 1 . . . . . . 4 . . . . . . . . . . . . . . . Ally Attacks 2181 | . . . 28 67 100 98 108 75 124 5 131 8 103 65 229 68 24 262 55 38 52 34 150 79 168 19 91 Total Damage 73330 | . . . 802 1728 2321 2196 2283 1546 3278 67 3812 265 3701 1988 4860 1741 714 7718 2557 1722 2866 1514 7692 3128 5751 1562 7518 Kills 514 | . . . 10 17 20 26 26 10 23 2 35 1 27 14 40 8 4 47 23 10 23 14 47 18 31 10 28 Allies Corrupted 14 | . . . . . . . . . . . . . . . 1 . . 10 . . . 1 . . 1 . 1 Allies Melted 3 | . . . . . . . . . . . . . 1 1 1 . . . . . . . . . . . . Borg Created 59 | . . . 8 9 7 3 . 3 4 . 1 . . . 4 3 . 6 . . . . 1 . 2 . 8 Largest Collective 6 | . . . 4 4 5 5 . 4 6 . 6 . . . 6 6 . 5 . . . . 5 . 4 . 4 Intel | -11 -10 -10 -8 -8 -8 -8 -8 -7 -7 -7 -7 -6 -6 -5 -5 -5 -5 -5 -5 -4 -4 -3 -3 -2 -2 -2 -1 ------- Run | Yrd Mat Sub Mat Gar Mat Gar Mat Fac Gar Fac Gar Fac Gar Fac Ext Cet Arc Hub Gar Fac Gar Res Tes Res Qua Sec Acc Active Infowar (turns) 19467 | 22 1974 4618 132 7 . . . 578 897 455 896 418 287 137 130 191 434 978 847 508 684 812 536 955 1404 1056 511 Sensors 3829 | . . . . . . . . . . . . . . . . . . . . . . . . 914 1368 1036 511 Terrain 2 | . . . . 2 . . . . . . . . . . . . . . . . . . . . . . . Structural 5 | . . . . 5 . . . . . . . . . . . . . . . . . . . . . . . Seismic 6746 | 22 1974 4618 132 . . . . . . . . . . . . . . . . . . . . . . . . Jamming 11874 | . . . . . . . . 578 897 455 896 418 287 137 130 191 434 978 847 508 684 812 536 955 1184 916 31 Robot Analysis Total 3 | . 3 . . . . . . . . . . . . . . . . . . . . . . . . . . Derelict Logs Recovered 2 | . . 2 . . . . . . . . . . . . . . . . . . . . . . . . . Drone Launches 11 | . . . . 4 2 . . . . . . 4 . 1 . . . . . . . . . . . . . Drone Recoveries 7 | . . . . 2 2 . . . . . . 3 . . . . . . . . . . . . . . . Exploration | -11 -10 -10 -8 -8 -8 -8 -8 -7 -7 -7 -7 -6 -6 -5 -5 -5 -5 -5 -5 -4 -4 -3 -3 -2 -2 -2 -1 ------------- Run | Yrd Mat Sub Mat Gar Mat Gar Mat Fac Gar Fac Gar Fac Gar Fac Ext Cet Arc Hub Gar Fac Gar Res Tes Res Qua Sec Acc Turns Passed 36962 | 164 2958 6570 2697 1502 2851 1662 1219 840 1011 455 938 418 649 1362 1800 500 436 1066 866 508 684 812 994 955 1446 1078 521 Spaces Moved 14817 | 74 993 2175 901 525 849 530 395 246 633 233 561 142 365 348 798 180 102 553 448 313 379 418 585 614 681 484 292 Core 3 | 3 . . . . . . . . . . . . . . . . . . . . . . . . . . . Treads 3307 | 71 993 2175 67 . . 1 . . . . . . . . . . . . . . . . . . . . . Legs . | . . . . . . . . . . . . . . . . . . . . . . . . . . . . Wheels 11502 | . . . 834 525 849 529 395 246 633 233 561 142 365 348 798 180 102 553 448 313 379 418 585 614 681 479 292 Hover . | . . . . . . . . . . . . . . . . . . . . . . . . . . . . Flight . | . . . . . . . . . . . . . . . . . . . . . . . . . . . . Fastest Speed 50 | 50 160 160 160 160 150 150 295 128 128 128 128 170 136 136 136 145 160 145 145 130 130 130 128 128 128 138 138 Average Speed 189 | 155 261 260 252 252 176 264 299 191 128 128 137 170 139 136 139 153 160 150 171 140 141 156 134 129 136 138 138 Slowest Speed 450 | 160 320 400 320 295 295 450 310 310 128 128 170 170 170 136 190 160 160 190 190 190 145 185 135 147 144 138 138 Overloaded Moves . | . . . . . . . . . . . . . . . . . . . . . . . . . . . . Propulsion Burnouts . | . . . . . . . . . . . . . . . . . . . . . . . . . . . . Robots Hopped 2 | . . . . . . . . . . . . . 2 . . . . . . . . . . . . . . Potential Cave-ins 14 | . . . . . . . . . . . . . . . . . . . . . . . . 2 . 12 . Cave-ins Triggered . | . . . . . . . . . . . . . . . . . . . . . . . . . . . . Teleports 1 | . . . . . . . . . . . . . . . . . . . . . . . . . . 1 . Spacefolds 2 | . . . . . . . . . . . . . . . . . . . . . . . . . . 2 . Exploration Rate (%) 55 | 5 98 91 54 82 75 84 52 13 82 6 94 11 61 16 94 68 82 70 77 11 54 12 91 28 76 42 15 Regions Visited 27 Branch Regions 8 Pre-discovered Areas 2 | . . 2 . . . . . . . . . . . . . . . . . . . . . . . . . Known Exits Taken 12 | . . . 1 . 1 . . 1 . 1 . 1 . 1 . . . 1 . 1 . 1 . 1 1 1 . Unknown Exits Taken 8 | 1 1 1 . . . . 1 . . . . . . . 1 1 1 . . . . . 1 . . . . Scrap Searched 13 | . . 13 . . . . . . . . . . . . . . . . . . . . . . . . . Spaces Dug 86 | . . . 3 . . . . 2 . . . . . . . . . 7 1 2 . . . 9 14 37 11 Terrain Destroyed 181 | . 19 . 11 . 3 . 3 3 . . . . . 3 11 . 6 11 1 2 . 4 . 10 17 45 32 Melee 2 | . . . . . . . . 2 . . . . . . . . . . . . . . . . . . . Projectile 129 | . 2 . 11 . . . . 1 . . . . . 3 4 . 6 11 1 2 . 4 . 10 17 45 12 AOE 50 | . 17 . . . 3 . 3 . . . . . . . 7 . . . . . . . . . . . 20 Terrain Rammed . | . . . . . . . . . . . . . . . . . . . . . . . . . . . . Walls Destroyed . | . . . . . . . . . . . . . . . . . . . . . . . . . . . . Machines Disabled . | . . . . . . . . . . . . . . . . . . . . . . . . . . . . Actions | -11 -10 -10 -8 -8 -8 -8 -8 -7 -7 -7 -7 -6 -6 -5 -5 -5 -5 -5 -5 -4 -4 -3 -3 -2 -2 -2 -1 --------- Run | Yrd Mat Sub Mat Gar Mat Gar Mat Fac Gar Fac Gar Fac Gar Fac Ext Cet Arc Hub Gar Fac Gar Res Tes Res Qua Sec Acc Total 22608 | 102 1287 2955 1233 651 2171 722 427 586 780 390 702 313 483 1225 1426 397 342 716 538 357 501 535 784 737 1095 770 383 Wait 5625 | 7 210 660 171 28 1267 47 13 297 42 151 80 163 74 834 378 180 200 67 49 9 36 52 138 68 248 142 14 Move 14786 | 73 992 2174 900 524 848 529 394 246 632 232 560 142 360 347 797 179 101 553 447 313 378 417 584 613 680 480 291 Hop 2 | . . . . . . . . . . . . . 2 . . . . . . . . . . . . . . Pick Up 249 | 6 28 27 38 14 11 4 4 6 3 2 2 . 7 7 10 9 2 13 1 2 1 7 9 2 21 4 9 Fast Attach 51 | 7 1 2 4 1 1 . . . . . . . . . . 1 1 3 1 3 1 4 4 2 3 11 1 Attach 48 | . . 5 3 4 . 2 . 3 . . 1 2 . 2 2 . . 2 . 1 . 2 3 2 3 8 3 Detach 8 | . . . 1 . . . . . . . . . . . . . . . . . . . 3 . 1 3 . Swap 258 | . 8 6 15 14 5 9 3 10 14 1 11 4 11 9 12 13 6 19 8 1 4 4 6 16 25 18 6 Drop 208 | . 11 10 34 12 13 2 6 4 3 3 3 . 4 6 10 12 2 13 1 2 1 7 15 1 24 5 4 Fire 797 | 9 37 69 57 34 19 50 7 15 38 1 20 . 17 12 46 . 30 19 6 26 17 42 13 33 40 99 41 Melee 9 | . . . . . . 4 . 2 . . . 1 . . . . . . . . . . . . 2 . . Ram . | . . . . . . . . . . . . . . . . . . . . . . . . . . . . Kick . | . . . . . . . . . . . . . . . . . . . . . . . . . . . . Crush . | . . . . . . . . . . . . . . . . . . . . . . . . . . . . Escape Stasis 192 | . . . . 8 . 40 . . 40 . 24 . 8 8 . . . . 24 . 32 . 8 . . . . Rewire 224 | . . 2 1 1 . 32 . . 3 . . . . . 159 . . . 1 . 23 . . . . . 2 Trap . | . . . . . . . . . . . . . . . . . . . . . . . . . . . . Miscellaneous 151 | . . . 9 11 7 3 . 3 5 . 1 1 . . 12 3 . 27 . . 8 . 1 . 48 . 12 Route ------- -11/Scrapyard -10/Materials (discovered 6 exits: [*Mat x3] / [*Min x2] / *Sub) -10/Subcaves (discovered 3 exits: *Mat x2 / Rec) -8/Materials (discovered 2 exits: *Fac / Gar) -8/Garrison (discovered 3 exits: *Mat x3) -8/Materials (discovered 3 exits: *Fac x2 / Gar) -8/Garrison (discovered 4 exits: *Fac x3 / *Mat) -8/Materials -7/Factory (discovered 6 exits: Fac x3 / Sto / Low / Gar) -7/Garrison (discovered 3 exits: *Fac x3) -7/Factory -7/Garrison (discovered 3 exits: *Fac x3) -6/Factory (discovered 3 exits: Low x2 / Gar) -6/Garrison -5/Factory (discovered 4 exits: *Upp x2 / *Ext x2) -5/Extension (discovered 2 exits: *Fac / *Cet) -5/Cetus (discovered 2 exits: *Fac / [*Arc]) -5/Archives (discovered 3 exits: *Fac / *Hub x2) -5/Hub_04(d) (discovered 3 exits: *Fac x2 / Gar) -5/Garrison (discovered 3 exits: *Fac x3) -4/Factory (discovered 2 exits: [*Upp] / Gar) -4/Garrison (discovered 2 exits: *Res x2) -3/Research -3/Testing -2/Research (discovered 3 exits: *Acc / *Qua x2) -2/Quarantine (discovered 3 exits: *Acc / *Sec / [*Frg]) -2/Section 7 -1/Access Tau Ceti IV Orbit History --------- Turn | Location | Event 8 | -11/Scrapyard | Discovered new exit (range 15) 165 | -11/Scrapyard | Entered Materials 318 | -10/Materials | Build established: Mutant 360 | -10/Materials | Discovered new exit (range 16) 781 | -10/Materials | Discovered new exit (range 8) 1119 | -10/Materials | Discovered new exit (range 4) 1277 | -10/Materials | Discovered new exit (range 6) 1525 | -10/Materials | Discovered new exit (range 11) 2323 | -10/Materials | Repaired Imp. Light Cannon 3104 | -10/Materials | Discovered new exit (range 8) 3123 | -10/Materials | Entered Subcaves 3124 | -10/Subcaves | Approached by a straggling Scientist 3450 | -10/Subcaves | Identified exit to Recycling 3947 | -10/Subcaves | A swath of the cavern ceiling suddenly collapsed 4353 | -10/Subcaves | Core integrity fell below 50% 4511 | -10/Subcaves | Discovered new exit (range 10) 4890 | -10/Subcaves | Visited 4L-MR0's lab 4952 | -10/Subcaves | Found Tower Shield 4954 | -10/Subcaves | Attached Tower Shield, gained temporary slots: Power, Propulsion x2, Utility x2, Weapon x2 4979 | -10/Subcaves | Found Prototype Special Melee Weapon 5361 | -10/Subcaves | Build established: Gunner 5767 | -10/Subcaves | Shifting Twisted Machinery released Sub. Power Source 6120 | -10/Subcaves | Learned location of Zion (-7) 6120 | -10/Subcaves | Met a Zionite searching for "candidates" 6136 | -10/Subcaves | Visited Clippyterm 6143 | -10/Subcaves | Learned location of Deep Caves (-7) 6143 | -10/Subcaves | Learned 40 Factory zone layouts 6782 | -10/Subcaves | Discovered new exit (range 8) 7382 | -10/Subcaves | Learned Materials terminal intel 7423 | -10/Subcaves | Shifting Twisted Machinery released Flamer 7441 | -10/Subcaves | Shifting Twisted Machinery released Shrapnel Trap 9116 | -10/Subcaves | Shifting Twisted Machinery released Sub. Beam Cannon 9173 | -10/Subcaves | Shifting Twisted Machinery released Multitool 9212 | -10/Subcaves | A swath of the cavern ceiling suddenly collapsed 9693 | -10/Subcaves | Entered Materials 9693 | -8/Materials | Evolved 4 slots: Weapon x4 9694 | -8/Materials | Loaded intel: 12 terminal locations 9694 | -8/Materials | Identified 1B-0RG's Assimilator 10144 | -8/Materials | Build established: Tank 10291 | -8/Materials | Assimilating Trooper 3a into Collective. 10392 | -8/Materials | Assimilating Defender 3a into Collective. 10448 | -8/Materials | Build established: Mutant 10603 | -8/Materials | Central database locked down 10648 | -8/Materials | Assimilating Defender 3b into Collective. 11017 | -8/Materials | Discovered new exit (range 14) 11395 | -8/Materials | Assimilating Marksman 3a into Collective. 11404 | -8/Materials | Assimilating Marksman 3b into Collective. 11520 | -8/Materials | Assimilating Shepherd 3a into Collective. 11853 | -8/Materials | Lost 3 allies 12048 | -8/Materials | Identified exit to Garrison 12169 | -8/Materials | Assimilating Defender 3c into Collective. 12194 | -8/Materials | Assimilating Defender 3d into Collective. 12390 | -8/Materials | Entered Garrison 12390 | -8/Garrison | Accompanied by 3 allies 12462 | -8/Garrison | Triggered checkpoint 12465 | -8/Garrison | Assimilating Trooper 3b into Collective. 12546 | -8/Garrison | Installed Relay Interface Framework 12550 | -8/Garrison | Assimilating Defender 3e into Collective. 12698 | -8/Garrison | Triggered checkpoint 12753 | -8/Garrison | Lost 4 allies 12781 | -8/Garrison | Core integrity fell below 50% 12793 | -8/Garrison | Assimilating Defender 3f into Collective. 12804 | -8/Garrison | Assimilating Shotgunner 3a into Collective. 12810 | -8/Garrison | Assimilating Trooper 3c into Collective. 12851 | -8/Garrison | Assimilating Trooper 3d into Collective. 12874 | -8/Garrison | Lost 3 allies 12918 | -8/Garrison | Assimilating Trooper 3e into Collective. 12932 | -8/Garrison | Assimilating Trooper 3f into Collective. 13125 | -8/Garrison | Discovered new exit (range 9) 13368 | -8/Garrison | Discovered new exit (range 41) 13397 | -8/Garrison | Discovered new exit (range 85) 13490 | -8/Garrison | Assimilating Rogue 3a into Collective. 13754 | -8/Garrison | Expanded RIF knowledge: Coupler Efficiency 13783 | -8/Garrison | Garrison Relay disabled 13892 | -8/Garrison | Entered Materials 13892 | -8/Materials | Accompanied by 5 allies 13981 | -8/Materials | Assimilating Technician 3a into Collective. 14340 | -8/Materials | Assimilating Trooper 3g into Collective. 14401 | -8/Materials | Assimilating Trooper 3h into Collective. 14563 | -8/Materials | Assimilating Defender 3g into Collective. 14602 | -8/Materials | Assimilating Defender 3h into Collective. 14621 | -8/Materials | Assimilating Trooper 3i into Collective. 14646 | -8/Materials | Assimilating Rogue 3b into Collective. 14811 | -8/Materials | Discovered new exit (range 16) 15147 | -8/Materials | Identified exit to Garrison 15160 | -8/Materials | Discovered new exit (range 13) 15461 | -8/Materials | Repaired Imp. Medium Armor Plating 15631 | -8/Materials | Garrison activated, responded to threat 16743 | -8/Materials | Entered Garrison 16743 | -8/Garrison | Accompanied by 5 allies 16781 | -8/Garrison | Triggered checkpoint 16915 | -8/Garrison | Triggered checkpoint 16927 | -8/Garrison | Triggered checkpoint 16936 | -8/Garrison | Core integrity fell below 20% 16968 | -8/Garrison | Lost 3 allies 16972 | -8/Garrison | Assimilating Bruiser 3a into Collective. 17096 | -8/Garrison | Discovered new exit (range 16) 17192 | -8/Garrison | Expanded RIF knowledge: Patrol Navigation 17287 | -8/Garrison | Triggered checkpoint 17705 | -8/Garrison | Triggered checkpoint 17767 | -8/Garrison | Assimilating Hacker 3a into Collective. 17808 | -8/Garrison | Discovered new exit (range 10) 17881 | -8/Garrison | Triggered checkpoint 17888 | -8/Garrison | Assimilating Defender 3i into Collective. 18091 | -8/Garrison | Triggered checkpoint 18197 | -8/Garrison | Garrison Relay disabled 18279 | -8/Garrison | Discovered new exit (range 9) 18317 | -8/Garrison | Triggered checkpoint 18350 | -8/Garrison | Discovered new exit (range 6) 18405 | -8/Garrison | Entered Materials 18405 | -8/Materials | Accompanied by 7 allies 19571 | -8/Materials | Discovered new exit (range 3) 19605 | -8/Materials | First assault squad dispatched 19624 | -8/Materials | Entered Factory 19624 | -7/Factory | Accompanied by 2 allies 19624 | -7/Factory | Evolved 2 slots: Propulsion x1, Utility x1 19625 | -7/Factory | Identified exit to Storage 19625 | -7/Factory | Identified exit to Factory 19625 | -7/Factory | Identified exit to Lower Caves 19718 | -7/Factory | Assimilating Fighter 4a into Collective. 19737 | -7/Factory | Assimilating Trooper 4a into Collective. 20094 | -7/Factory | Assimilating Hacker 4a into Collective. 20177 | -7/Factory | Identified exit to Garrison 20186 | -7/Factory | Build established: Scavenger-Mutant 20464 | -7/Factory | Entered Garrison 20464 | -7/Garrison | Accompanied by 4 allies 20480 | -7/Garrison | Triggered checkpoint 20617 | -7/Garrison | Triggered checkpoint 20640 | -7/Garrison | Triggered checkpoint 20643 | -7/Garrison | Assimilating Virus 4a into Collective. 20690 | -7/Garrison | Triggered checkpoint 20712 | -7/Garrison | Assimilating Trooper 4b into Collective. 20770 | -7/Garrison | Triggered checkpoint 20770 | -7/Garrison | Triggered checkpoint 20842 | -7/Garrison | Discovered new exit (range 16) 20988 | -7/Garrison | Triggered checkpoint 21004 | -7/Garrison | Build established: Bothacker-Mutant 21068 | -7/Garrison | Discovered new exit (range 15) 21069 | -7/Garrison | Triggered checkpoint 21074 | -7/Garrison | Assimilating Guardian 4a into Collective. 21095 | -7/Garrison | Expanded RIF knowledge: Structural Interface 21275 | -7/Garrison | Spotted B-75 Beast 21293 | -7/Garrison | Allies destroyed B-75 Beast 21336 | -7/Garrison | Discovered new exit (range 9) 21360 | -7/Garrison | Triggered checkpoint 21388 | -7/Garrison | Garrison Relay disabled 21394 | -7/Garrison | Assimilating Guardian 4b into Collective. 21475 | -7/Garrison | Entered Factory 21475 | -7/Factory | Accompanied by 7 allies 21492 | -7/Factory | Identified exit to Garrison 21930 | -7/Factory | Entered Garrison 21930 | -7/Garrison | Accompanied by 7 allies 21945 | -7/Garrison | Expanded RIF knowledge: Coupler Efficiency 21953 | -7/Garrison | Found embedded Infiltrators 21998 | -7/Garrison | Triggered checkpoint 22028 | -7/Garrison | Rescued a captive Derelict 22088 | -7/Garrison | Triggered checkpoint 22100 | -7/Garrison | Triggered checkpoint 22106 | -7/Garrison | P-60 Hacker assimilated allied AG-AY1(x) 22169 | -7/Garrison | Triggered checkpoint 22234 | -7/Garrison | Triggered checkpoint 22241 | -7/Garrison | Discovered exit to Factory (range 9) 22424 | -7/Garrison | Discovered exit to Factory (range 11) 22438 | -7/Garrison | Triggered checkpoint 22548 | -7/Garrison | Triggered checkpoint 22616 | -7/Garrison | Triggered checkpoint 22684 | -7/Garrison | Assimilating Hacker 4b into Collective. 22760 | -7/Garrison | Discovered exit to Factory (range 11) 22763 | -7/Garrison | Triggered checkpoint 22868 | -7/Garrison | Entered Factory 22868 | -6/Factory | Accompanied by 9 allies 22868 | -6/Factory | Evolved 2 slots: Utility x1, Weapon x1 22993 | -6/Factory | Identified exit to Lower Caves 23123 | -6/Factory | Identified exit to Garrison 23218 | -6/Factory | First assault squad dispatched 23286 | -6/Factory | Entered Garrison 23286 | -6/Garrison | Accompanied by 9 allies 23295 | -6/Garrison | Triggered checkpoint 23454 | -6/Garrison | Triggered checkpoint 23567 | -6/Garrison | Spotted B-75 Beast 23573 | -6/Garrison | Assimilated Beast 5a with formatsys_high 23580 | -6/Garrison | Triggered checkpoint 23581 | -6/Garrison | Triggered checkpoint 23582 | -6/Garrison | Triggered checkpoint 23602 | -6/Garrison | Allies destroyed Beast 5a 23639 | -6/Garrison | Expanded RIF knowledge: Hotswap 23710 | -6/Garrison | Triggered checkpoint 23758 | -6/Garrison | Triggered checkpoint 23826 | -6/Garrison | Triggered checkpoint 23829 | -6/Garrison | Rescued a captive Derelict 23830 | -6/Garrison | Rescued a captive Derelict 23901 | -6/Garrison | Discovered new exit (range 11) 23935 | -6/Garrison | Entered Factory 23935 | -5/Factory | Accompanied by 7 allies 23935 | -5/Factory | Evolved 2 slots: Utility x2 24131 | -5/Factory | Discovered new exit (range 14) 24263 | -5/Factory | Identified exit to Upper Caves 24263 | -5/Factory | Identified exit to Extension 24535 | -5/Factory | First assault squad dispatched 25297 | -5/Factory | Entered Extension 25297 | -5/Extension | Accompanied by 4 allies 25365 | -5/Extension | Assimilating Sentinel 6a into Collective. 25382 | -5/Extension | Assimilating Sentinel 6b into Collective. 25390 | -5/Extension | Assimilating Sentinel 6c into Collective. 25535 | -5/Extension | Rescued a captive Derelict 25922 | -5/Extension | Disrupted transfer network 25956 | -5/Extension | Build established: Commander-Mutant 26082 | -5/Extension | Spotted B-75 Beast 26099 | -5/Extension | Spotted B-75 Beast 26101 | -5/Extension | Allies destroyed B-75 Beast 26111 | -5/Extension | Allies destroyed B-75 Beast 26151 | -5/Extension | Lost 5 allies 26175 | -5/Extension | Rescued A7 26355 | -5/Extension | Assimilating Slayer 6a into Collective. 26402 | -5/Extension | Build established: Bothacker-Mutant 26441 | -5/Extension | Lost 4 allies 26753 | -5/Extension | Build established: Commander-Mutant 26762 | -5/Extension | Discovered new exit (range 16) 26763 | -5/Extension | Discovered new exit (range 15) 27097 | -5/Extension | First assault squad dispatched 27097 | -5/Extension | Entered Cetus 27097 | -5/Cetus | Accompanied by 20 allies (A7) 27102 | -5/Cetus | Acquired a Cetus Manufacturing Module code from A7 27116 | -5/Cetus | Spotted Cetus Guard 27124 | -5/Cetus | Spotted Cetus Guard 27124 | -5/Cetus | Spotted Cetus Guard 27126 | -5/Cetus | Spotted Cetus Guard 27142 | -5/Cetus | Assimilating Cetus Guard into Collective. 27142 | -5/Cetus | Allies destroyed Cetus Guard 27150 | -5/Cetus | Assimilating Cetus Guard into Collective. 27151 | -5/Cetus | Allies destroyed Cetus Guard 27178 | -5/Cetus | Lost 6 allies 27211 | -5/Cetus | Started Cetus Manufacturing Module 27222 | -5/Cetus | Escorted A7 to Cetus Mainframe 27236 | -5/Cetus | Manufactured an Enhanced Grunt 27252 | -5/Cetus | Assimilating Enhanced Grunt into Collective. 27261 | -5/Cetus | Manufactured an Enhanced Grunt 27274 | -5/Cetus | Discovered new exit (range 15) 27286 | -5/Cetus | Manufactured an Enhanced Grunt 27311 | -5/Cetus | Manufactured an Enhanced Grunt 27336 | -5/Cetus | Manufactured an Enhanced Grunt 27339 | -5/Cetus | Spotted Cetus Guard 27340 | -5/Cetus | Allies destroyed Cetus Guard 27341 | -5/Cetus | Spotted Cetus Guard 27350 | -5/Cetus | Discovered new exit (range 23) 27355 | -5/Cetus | Allies destroyed Cetus Guard 27358 | -5/Cetus | Allies destroyed Cetus Guard 27359 | -5/Cetus | Found Prototype Device 27360 | -5/Cetus | Identified Exp. Thermal Shield 27385 | -5/Cetus | Met Revision 17 27597 | -5/Cetus | Entered Archives 27597 | -5/Archives | Accompanied by 19 allies (A7) 27602 | -5/Archives | Received a hacking code to weaken MAIN.C 27724 | -5/Archives | Discovered new exit (range 13) 27914 | -5/Archives | Discovered new exit (range 16) 27946 | -5/Archives | Discovered new exit (range 14) 28033 | -5/Archives | Entered Hub_04(d) 28033 | -5/Hub_04(d) | Accompanied by 17 allies 28304 | -5/Hub_04(d) | Network Hub disabled 28312 | -5/Hub_04(d) | Spotted Lightning 28312 | -5/Hub_04(d) | Spotted Lightning 28313 | -5/Hub_04(d) | Spotted Lightning 28321 | -5/Hub_04(d) | Garrison activated, responded to threat 28328 | -5/Hub_04(d) | Spotted Lightning 28333 | -5/Hub_04(d) | Spotted Lightning 28335 | -5/Hub_04(d) | Spotted Lightning 28338 | -5/Hub_04(d) | Assimilating Lightning into Collective. 28340 | -5/Hub_04(d) | Allies destroyed Lightning 28341 | -5/Hub_04(d) | Allies destroyed Lightning 28355 | -5/Hub_04(d) | Assimilating Lightning into Collective. 28377 | -5/Hub_04(d) | Assimilating Lightning into Collective. 28392 | -5/Hub_04(d) | Allies destroyed Lightning 28399 | -5/Hub_04(d) | Found Prototype Device 28400 | -5/Hub_04(d) | Identified Exp. EM Shield 28405 | -5/Hub_04(d) | Found Prototype Processor 28419 | -5/Hub_04(d) | Lost 15 allies 28486 | -5/Hub_04(d) | Identified Exp. Targeting Computer 28513 | -5/Hub_04(d) | Build established: Bothacker-Mutant 28565 | -5/Hub_04(d) | Discovered new exit (range 10) 28676 | -5/Hub_04(d) | Network Hub disabled 28732 | -5/Hub_04(d) | Watched by a mysterious "MATRIX" hacker. 28736 | -5/Hub_04(d) | Spotted Lightning 28737 | -5/Hub_04(d) | Spotted Lightning 28745 | -5/Hub_04(d) | Spotted Lightning 28748 | -5/Hub_04(d) | Spotted Lightning 28750 | -5/Hub_04(d) | Spotted Lightning 28763 | -5/Hub_04(d) | Assimilating Lightning into Collective. 28776 | -5/Hub_04(d) | Allies destroyed Lightning 28778 | -5/Hub_04(d) | Assimilating Lightning into Collective. 28784 | -5/Hub_04(d) | Assimilating Lightning into Collective. 28796 | -5/Hub_04(d) | Allies destroyed Lightning 28808 | -5/Hub_04(d) | Discovered new exit (range 13) 28853 | -5/Hub_04(d) | Allies destroyed Lightning 28883 | -5/Hub_04(d) | Network Hub disabled 29021 | -5/Hub_04(d) | Allies destroyed B-75 Beast 29095 | -5/Hub_04(d) | Identified exit to Garrison 29099 | -5/Hub_04(d) | Entered Garrison 29099 | -5/Garrison | Accompanied by 5 allies 29129 | -5/Garrison | Spotted B-75 Beast 29135 | -5/Garrison | Allies destroyed B-75 Beast 29140 | -5/Garrison | Rewired B-90 Cyclops 29211 | -5/Garrison | Triggered checkpoint 29359 | -5/Garrison | Triggered checkpoint 29359 | -5/Garrison | Triggered checkpoint 29433 | -5/Garrison | Found Prototype Device 29465 | -5/Garrison | Discovered new exit (range 13) 29569 | -5/Garrison | Triggered checkpoint 29611 | -5/Garrison | Discovered new exit (range 77) 29611 | -5/Garrison | Discovered new exit (range 53) 29611 | -5/Garrison | Discovered new exit (range 7) 29707 | -5/Garrison | Triggered checkpoint 29761 | -5/Garrison | Triggered checkpoint 29813 | -5/Garrison | Triggered checkpoint 29851 | -5/Garrison | Expanded RIF knowledge: Zone Cloak 29965 | -5/Garrison | Entered Factory 29965 | -4/Factory | Accompanied by 6 allies 29965 | -4/Factory | Evolved 2 slots: Propulsion x1, Utility x1 30230 | -4/Factory | Identified Exp. Phase Shifter 30291 | -4/Factory | Discovered new exit (range 16) 30465 | -4/Factory | First assault squad dispatched 30471 | -4/Factory | Identified exit to Garrison 30473 | -4/Factory | Entered Garrison 30473 | -4/Garrison | Accompanied by 6 allies 30548 | -4/Garrison | Triggered checkpoint 30565 | -4/Garrison | Triggered checkpoint 30566 | -4/Garrison | Allies destroyed B-86 Titan 30577 | -4/Garrison | Triggered checkpoint 30716 | -4/Garrison | Learned Research security intel 30734 | -4/Garrison | Discovered new exit (range 12) 30739 | -4/Garrison | Triggered checkpoint 30775 | -4/Garrison | Triggered checkpoint 31010 | -4/Garrison | Garrison Relay disabled 31098 | -4/Garrison | Discovered new exit (range 21) 31145 | -4/Garrison | Expanded RIF knowledge: Crosswire 31157 | -4/Garrison | Entered Research 31157 | -3/Research | Accompanied by 10 allies 31157 | -3/Research | Evolved 2 slots: Power x1, Utility x1 31327 | -3/Research | Build established: Botlord-Mutant 31357 | -3/Research | Revision forces began assault on 0b10 31441 | -3/Research | Discovered new exit (range 5) 31449 | -3/Research | Identified exit to Testing 31482 | -3/Research | Met up with Revision 17++ 31857 | -3/Research | Research terminal network offline 31969 | -3/Research | Entered Testing 31969 | -3/Testing | Accompanied by 9 allies 32014 | -3/Testing | Found Prototype Protection 32014 | -3/Testing | Identified Med. Regenerative Plating 32025 | -3/Testing | Found Prototype Protection 32025 | -3/Testing | Identified SHELL Armor 32030 | -3/Testing | Found Hvy. Regenerative Plating 32100 | -3/Testing | Allies destroyed PL-W7DRLD07UE 32126 | -3/Testing | Allies destroyed PG-0H4XN6O8Z5 32442 | -3/Testing | Found Prototype Energy Cannon 32442 | -3/Testing | Identified Cld. Nova Cannon 32469 | -3/Testing | First assault squad dispatched 32574 | -3/Testing | Allies destroyed Borg Lightning 32623 | -3/Testing | Assimilating Artificer 8a into Collective. 32940 | -3/Testing | Discovered new exit (range 16) 32963 | -3/Testing | Entered Research 32963 | -2/Research | Accompanied by 6 allies 32963 | -2/Research | Evolved 2 slots: Utility x2 33213 | -2/Research | First assault squad dispatched 33329 | -2/Research | Found Quantum Capacitor 33575 | -2/Research | Spotted B-90 Cyclops 33593 | -2/Research | Destroyed B-90 Cyclops 33613 | -2/Research | Identified exit to Quarantine 33737 | -2/Research | Discovered new exit (range 15) 33757 | -2/Research | Found Exp. EM Shield 33760 | -2/Research | Found Exp. Signal Interpreter 33770 | -2/Research | Identified exit to Access 33815 | -2/Research | Build established: Bothacker-Mutant 33918 | -2/Research | Entered Quarantine 33918 | -2/Quarantine | Accompanied by 4 allies 33976 | -2/Quarantine | Found Alien Artifact 33980 | -2/Quarantine | Found Alien Artifact 33989 | -2/Quarantine | Found Alien Artifact 34056 | -2/Quarantine | Assimilating Terminator 9a into Collective. 34109 | -2/Quarantine | Found Alien Impact Weapon 34146 | -2/Quarantine | Found Alien Artifact 34320 | -2/Quarantine | Found Alien Artifact 34343 | -2/Quarantine | Met incapacitated Sigix Warrior 34343 | -2/Quarantine | Lockdown squad dispatched 34418 | -2/Quarantine | Found Sigix Containment Pod 34436 | -2/Quarantine | Spotted Lightning 34436 | -2/Quarantine | Spotted Lightning 34437 | -2/Quarantine | Spotted Lightning 34449 | -2/Quarantine | Assimilating Lightning into Collective. 34514 | -2/Quarantine | Allies destroyed Lightning 34530 | -2/Quarantine | Allies destroyed Lightning 34714 | -2/Quarantine | Spotted Alpha 7 34736 | -2/Quarantine | Allies destroyed Alpha 7 34823 | -2/Quarantine | Discovered exit to Access (range 17) 35073 | -2/Quarantine | Build established: Scavenger-Mutant 35121 | -2/Quarantine | Identified Core Stripper 35136 | -2/Quarantine | Spotted Fortress 35144 | -2/Quarantine | Destroyed Fortress 35149 | -2/Quarantine | Found Prototype Device 35155 | -2/Quarantine | Found Prototype Device 35157 | -2/Quarantine | Identified Exp. Force Field 35163 | -2/Quarantine | Found Prototype Reactor 35163 | -2/Quarantine | Identified Vortex Chain Reactor 35165 | -2/Quarantine | Identified Thermal Barrier 35168 | -2/Quarantine | First assault squad dispatched 35267 | -2/Quarantine | Discovered new exit (range 6) 35267 | -2/Quarantine | Discovered new exit (range 6) 35273 | -2/Quarantine | Identified exit to Section 7 35364 | -2/Quarantine | Entered Section 7 35364 | -2/Section 7 | Accompanied by 3 allies 35398 | -2/Section 7 | Spotted S7 Guard 35418 | -2/Section 7 | Destroyed S7 Guard 35425 | -2/Section 7 | Found Alien Artifact 35426 | -2/Section 7 | Identified Core Membrane 35426 | -2/Section 7 | Installed Core Membrane, gained immunity to corruption 35490 | -2/Section 7 | Spotted S7 Guard 35513 | -2/Section 7 | Found Alien Artifact 35513 | -2/Section 7 | Identified Integrated Mediator 35513 | -2/Section 7 | Installed Integrated Mediator, increased core attachment efficiency 35714 | -2/Section 7 | Found Alien Artifact 35714 | -2/Section 7 | Identified Spacefold Activator 35754 | -2/Section 7 | Found Alien Artifact 35754 | -2/Section 7 | Identified Integrated Reactor 35754 | -2/Section 7 | Installed Integrated Reactor, increased core energy generation (+10) 35799 | -2/Section 7 | Discovered exit to Access (range 10) 35823 | -2/Section 7 | Identified Dimensional Node Initializer 35823 | -2/Section 7 | Initialized slip node 35883 | -2/Section 7 | Build established: Mutant 35935 | -2/Section 7 | Found Integrated Reactor 35936 | -2/Section 7 | Installed Integrated Reactor, increased core energy generation (+10) 36035 | -2/Section 7 | Found Integrated Reactor 36035 | -2/Section 7 | Installed Integrated Reactor, increased core energy generation (+10) 36038 | -2/Section 7 | Found Integrated Reactor 36038 | -2/Section 7 | Installed Integrated Reactor, increased core energy generation (+10) 36041 | -2/Section 7 | Found Integrated Reactor 36041 | -2/Section 7 | Installed Integrated Reactor, increased core energy generation (+10) 36089 | -2/Section 7 | Found Alien Artifact 36089 | -2/Section 7 | Identified LRC Energy Well 36089 | -2/Section 7 | Installed LRC Energy Well, increased energy storage capacity (+250) 36092 | -2/Section 7 | Found Alien Artifact 36092 | -2/Section 7 | Identified LRC Armor 36092 | -2/Section 7 | Installed LRC Armor, increased core integrity (+250) 36146 | -2/Section 7 | Found Alien Artifact 36146 | -2/Section 7 | Identified Core Expander 36146 | -2/Section 7 | Installed Core Expander, added new Power slot 36186 | -2/Section 7 | Identified Subatomic Replicator 36186 | -2/Section 7 | Used Subatomic Replicator to create Alien Artifact 36335 | -2/Section 7 | Activated Sigix Exoskeleton 36335 | -2/Section 7 | Unable to understand communications from Sigix Warrior 36425 | -2/Section 7 | Identified Supercharged TR 36425 | -2/Section 7 | Warped through subspace to slip node 36436 | -2/Section 7 | Spotted B-90 Cyclops 36442 | -2/Section 7 | Entered Access 36442 | -1/Access | Accompanied by 1 ally (Sigix Warrior) 36442 | -1/Access | Evolved 2 slots: Utility x2 36463 | -1/Access | Build established: Scavenger-Mutant 36511 | -1/Access | Spotted Executioner 36512 | -1/Access | Spotted Striker 36515 | -1/Access | Destroyed Executioner 36517 | -1/Access | Destroyed Striker 36517 | -1/Access | Spotted Executioner 36518 | -1/Access | Allies destroyed Executioner 36565 | -1/Access | Assimilating Enforcer 10a into Collective. 36570 | -1/Access | Assimilating Enforcer 10b into Collective. 36639 | -1/Access | Assimilating Master 10a into Collective. 36645 | -1/Access | Assimilating Terminator 10a into Collective. 36688 | -1/Access | Assimilating Terminator 10b into Collective. 36692 | -1/Access | Assimilating Terminator 10c into Collective. 36873 | -1/Access | Unable to understand communications from Sigix Warrior 36890 | -1/Access | Assimilating Terminator 10d into Collective. 36916 | -1/Access | Assimilating Terminator 10e into Collective. 36917 | -1/Access | Garrison activated, responded to threat 36958 | -1/Access | Discovered new exit (range 3) 36961 | -1/Access | Identified exit to Surface 36963 | *** | Destroyed 0b10! Last Messages --------------- 36938_ Synergy achieved. Target locked: G-73 Enforcer. 36938_ Quantum Shear penetrates G-73 Enforcer. 36938_ G-73 Enforcer destroyed. 36938_ Quantum Shear penetrates G-73 Enforcer. 36943_ Slug penetrates Borg Terminator 10e. 36944_ Borg Terminator 10e assimilation complete, grew Sfc. Borg Blade, Sfc. Borg Regenerator. 36945_ Sealed Barrier breached. 36946_ Slug penetrates Sigix Warrior. 36946_ Quantum Shear penetrates Y-72 Warden. 36947_ Main Access Shell breached. 36949_ G-73 Enforcer Myomer Leg severed. 36949_ Slug penetrates Sigix Warrior. 36949_ Slug penetrates Wall. 36951_ G-73 Enforcer Phase Gun severed. 36953_ Borg Terminator 10e destroyed. 36953_ Core damaged by loss of Borg Terminator 10e (-18). 36958_ EXIT=FOUND 36961_ EXIT=IDENTIFIED: SURFACE [Achievement: Partners In Destruction] Map ----- +----------------------------------------------------+ | ?????????????????????????????????????????????????? | | ?????????????????????????????????????????????????? | | ?????????????????????????????????????????????????? | | ?????????????????????????????????????????????????? | | ?????????????????????????????????????????????????? | | ?????????????????????????????????????????????????? | | ?????????????????????????????????????????????????? | | ?????????????????????????????????????????????????? | | ?????????????????????????????????????????????????? | | ?????????????????????????????????????????????????? | | ?????????????????????????????????????????????????? | | ?????????????????????????????????????????????????? | | ?????????????????????????????????????????????????? | | ?????????????????????????????????????????????????? | | ?????????????????????????????????????????????????? | | ?????????????????????????????????????????????????? | | ?????????????????????????????????????????????????? | | ?????????????????????????????????????????????????? | | ?????????????????????????????????????????????????? | | ?????????????????????????????????????????????????? | | ???????????????????#"????????????????????????????? | | ???????????????????# ????????????????????????????? | | ???????????????????# ?""""""?????????????????????? | | ???????????????????# " "?????????????????????? | | ???????????????????# " "" "?????????????????????? | | ???????????????????# " "@ "?????????????????????? | | ???????????????????# " "? #??????????????????? | | ???????????????????# """" #??????????????????? | | ???????????????????# #?????????????###### | | ???????????????????# #?????????? | | ???????????????????"""" """""""?????????? | | ???????????????????#"" ##????????? | | ???????????????????#"" "#????????? | | ?#?????????????????#"" ##?????????? | | ?# ???????##??????#T #????????????? [=! | | ??? ??????# #?????#"" #?????????????? [!? | | ????? ????# #?????#"" #?????????????????? | | #######+####""##"###"" ######?????????????# | | !/*=[% w ??????????? | | % *!%!== ??????????? | | ??########""*"=#######"!###########+#########????? | | ???????# "%""#####?##!#????????????? #???? | | ???????## [#=" """G"!" ???????????? #???? | | ????????# " " """ """? ?????#?? "?" #???? | | ????????# " " ??#????# ""T"" #???? | | ????????#### " = ??????# "" "" +???? | | ???????????# " ??????# #???? | | ???????????# " ??????# #???? | | ???????????# #######+#####??????? #???? | | ???????????# #???????????? #???? | +----------------------------------------------------+ Best States ------------- Heat Dissipation 78 Coolant Potential 120 Energy Generation 127 Energy Capacity 1200 Matter Stores 526 Matter Capacity 800 Sight Range 16 Robot Scan Range 18 Terrain Scan Density 10 Jamming Range 14 Corruption Block 15 Armor Coverage 2000 Resistance: EM 75 Power Shielding 33 Point Defense Rating 240 Phase Shifting 20 Evasion (%) 60 Core Analysis 6 Recoil Reduction 4 Offensive Hacking 12 Relay Coupler Types 5 Relay Coupler Value 76 Item Schematics ----------------- Huge Storage Unit | -10/Materials | Hacked Exp. Terrain Scan Processor | -3/Testing | Archive Hvy. Regenerative Plating | -3/Testing | Hacked Ionic Axe | -3/Testing | Archive Exp. Signal Interpreter | -3/Testing | Archive Exp. Thermal Shield | -3/Testing | Archive Nanosword | -3/Testing | Archive Adv. Variable Charge Gun | -3/Testing | Archive Imp. Lightning Gun | -3/Testing | Archive Prc. Matter Filter | -3/Testing | Archive Exp. Targeting Computer | -3/Testing | Archive Imp. Diametric Drive | -3/Testing | Archive Diametric Drive | -3/Testing | Archive Com. Particle Reactor | -3/Testing | Archive Tactical Quantum Warhead | -3/Testing | Archive Gravity Flail | -3/Testing | Archive Smartbomb Launcher | -3/Testing | Archive Prc. Energy Filter | -3/Testing | Archive Adv. Micro-nuke Launcher | -3/Testing | Archive Hds. Centrium Wheel | -3/Testing | Scanalyzed Quantum Reactor | -2/Research | Hacked Robot Schematics ------------------ T-07 Excavator | -3/Testing | Archive C-55 Analyst | -3/Testing | Archive A-27 Freighter | -3/Testing | Archive A-15 Conveyor | -3/Testing | Archive Fabricated ------------ Nothing Repaired ---------- Imp. Light Cannon | 45% | -10/Materials Imp. Medium Armor Plating | 70% | -8/Materials Studied --------- Wheel | -8/Materials | Hacked Com. Wheel | -8/Materials | Hacked Arm. Treads | -8/Materials | Hacked Rnf. Ion Engine | -8/Materials | Hacked Imp. Remote Datajack | -4/Factory | Hacked Lrn. Proton Cannon | -4/Factory | Hacked Quantum Reactor | -3/Research | Hacked Adv. Remote Datajack | -3/Research | Hacked Com. HERF Cannon | -3/Testing | Hacked Alien Tech Used ----------------- Core Stripper Core Membrane Integrated Mediator Spacefold Activator Integrated Reactor Dimensional Node Initializer LRC Energy Well LRC Armor Core Expander Subatomic Replicator Supercharged TR Achievements -------------- Be The Sidekick Hackerman I, Locutus Join The Dark Side Let Me Out Of Here Mindtrick Not Today, Chutes Partners In Destruction You Will Be Upgraded Challenges ------------ None Game ------ Seed RainbowUltimateBiocell Manual? 0 Play Time 08:44:15 Cumulative 619.6 hours Start 2026.04.05 @ 14:03:39 End 2026.04.08 @ 22:10:49 Sessions 53 Manual Loads 0 Difficulty Rogue Special Mode None Game No. 125 Rogue 117 Adventurer 1 Explorer 7 Win Type 3 Total 52 Types 17/4/15/2/1/1/8/1/1/2 Lore% 78 Gallery% 81 Achievement% 62 Wizard Run 0 Options --------- Layout 0 ASCII 0 Keyboard 0 Movement Mouse Keybinds 0 Fullscreen 1 Font 24/Smallcaps Map View 76x50 Zoom Use 0% Tactical HUD 1 Map Filters NONE Filters NONE Steam 1 RUN: af1308df-21eb-4053-b2b8-9cc5d875ffa5